Workbook

Sheet Population Estimates
B1: GOPB Estimates | C1: 1990 | D1: 2000 | E1: 2010 | F1: 2020 | G1: 2030 | H1: 2040 | I1: 2050 | J1: 2060
B2: 2005 Estimate | C2: 48978 | D2: 91090 | E2: 168078 | F2: 279864 | G2: 415510 | H2: 559670 | I2: 709674 | J2: 860378
B3: 2012 Estimate | C3: 48978 | D3: 91090 | E3: 138748 | F3: 196762 | G3: 280558 | H3: 371743 | I3: 472567 | J3: 581731 | Q3: low | R3: high
B4: # Households (est. 2012) | C4: 15481 | D4: 30191 | E4: 46545 | F4: 70919 | G4: 112378 | H4: 151647 | I4: 192884 | J4: 237065 | Q4: ='First Scenario'!N14 -> 61840169.77 | R4: ='Second Scenario'!N14 -> 130945384.2
P5: per capita debt | Q5: =Q4/(($E$3+$F$3)/2) -> 368.6338397 | R5: =R4/(($E$3+$F$3)/2) -> 780.5751497
B7: To solve for geometric growth rates: x_2060 = x_2010 * Exp(r * (2060-2010)) and solve for r.
B8: But that is for continuous compounding. For annual compounding: | I8: =J4-E4 -> 190520 | J8: change in households
B9: x_2060 = x_2010 * (1+r)^(2060-2010) and solve for r. | I9: =EXP( LN(J4/E4) / (J1-E1)) - 1 -> 0.0330941162 | J9: Annually Compounded Household Growth Rate, 2010--2060
B10: => Exp[ Ln(x_2060/x_2010) / (2060-2010)] - 1 = r. | I10: =EXP( LN(J3/E3) / (J1-E1)) - 1 -> 0.02908182853 | J10: Annually Compounded Population Growth Rate, 2010--2060
B11: Also, for annual compounding, x_t = x_0 * (1+r)^t implies that
B12: x_(t+1) - x_t = x_0 * (1+r)^t * r = x_t * r. | I12: 295 | J12: gallons per capita per day 2011, p. ES-7 of 2011 DWRe Water Needs Assessment
B35: Source: GOPB 2012 Population Projections

Sheet DSWRESR
A1: Data from the Draft Socioeconomics and Water Resource Economics Study Report | I1: ='First Scenario'!N11 -> 0.04 | J1: interest rate declared in the "First Scenario" (its N11)
I2: ='Second Scenario'!N11 -> 0.04 | J2: interest rate declared in the "Second Scenario" (its N11)
I3: 0.04 | J3: interest rate used on this page for our calculations (not for the Draft Report calculations, which are B6, I6, B23, and I23)
I4: 0.025 | J4: FERC "escalation rate" (rate of benefit & cost increases) to be used in Scenario pages
A6: Page 5-3, Table 5-1, No Pump Storage | H6: Page 5-4, Table 5-2, No Pump Storage
B7: 0.0414 | C7: Discount Rate | I7: 0.03 | J7: Discount Rate
B8: 0.025 | C8: Escalation Rate | I8: 0.025 | J8: Escalation Rate | N8: For Washington County's share of these, see tab "Revenues and Expenses"
N9: Avg. of 2 cases | O9: Avg. of 2 cases
B10: PV, 2010$ | C10: Annual, 2026 | D10: PV, 2015$ | I10: PV, 2010$ | J10: Annual, 2026 | K10: PV, 2015$ | N10: Annual, 2026 | O10: PV, 2015$
A11: Benefits | H11: Benefits | P11: Benefits | Q11: disagreement (ratio)
A12: Power-Inline | B12: 45167000 | C12: =(1+$B$8)^6 * (1+$B$7)^10 * (1 - (1+$B$8)/(1+$B$7)) * B12 / (1 - ((1+$B$8)/(1+$B$7))^41) -> 2587006.435 | E12: from equation 5 | H12: Power-Inline | I12: 69561000 | J12: =(1+$I$8)^6 * (1+$I$7)^10 * (1 - (1+$I$8)/(1+$I$7)) * I12 / (1 - ((1+$I$8)/(1+$I$7))^41) -> 2909678.091 | L12: from equation 5 | N12: =AVERAGE(C12,J12) -> 2748342.263 | P12: Power-Inline | Q12: =C12/J12 -> 0.8891040018
A13: Power-Pump Stations | B13: 127587000 | C13: =(1+$B$8)^6 * (1+$B$7)^10 * (1 - (1+$B$8)/(1+$B$7)) * B13 / (1 - ((1+$B$8)/(1+$B$7))^41) -> 7307733.301 | E13: from equation 5 | H13: Power-Pump Stations | I13: 197255000 | J13: =(1+$I$8)^6 * (1+$I$7)^10 * (1 - (1+$I$8)/(1+$I$7)) * I13 / (1 - ((1+$I$8)/(1+$I$7))^41) -> 8251010.65 | L13: from equation 5 | N13: =AVERAGE(C13,J13) -> 7779371.976 | P13: Power-Pump Stations | Q13: =C13/J13 -> 0.8856773564
N14: =SUM(N12:N13) -> 10527714.24 | P14: sum
A15: Costs | H15: Costs | P15: Costs
A16: Capital Construction | B16: 1124717000 | D16: =(1 -((1+B8)/(1+$I$3))^4)/(1- (1+B8)/(1+$I$3) )*(1/(1+B8))*(1 - (1+B8)/(1+B7) )/(1-((1+B8)/(1+B7))^4)*(1+B7)^6 *B16 -> 1402458713 | E16: from equation 6 | H16: Capital Construction | I16: 1227349000 | K16: =(1 -((1+I8)/(1+$I$3))^4)/(1- (1+I8)/(1+$I$3) )*(1/(1+I8))*(1 - (1+I8)/(1+I7) )/(1-((1+I8)/(1+I7))^4)*(1+I7)^6 *I16 -> 1409367477 | L16: from equation 6 | O16: =AVERAGE(D16,K16) -> 1405913095 | P16: Capital Construction | Q16: =D16/K16 -> 0.9950979687
A17: Operation, Maintenance & Replacement | B17: 72908000 | C17: =(1+$B$8)^6 * (1+$B$7)^10 * (1 - (1+$B$8)/(1+$B$7)) * B17 / (1 - ((1+$B$8)/(1+$B$7))^41) -> 4175913.059 | E17: from equation 5 | H17: Operation, Maintenance & Replacement | I17: 95113000 | J17: =(1+$I$8)^6 * (1+$I$7)^10 * (1 - (1+$I$8)/(1+$I$7)) * I17 / (1 - ((1+$I$8)/(1+$I$7))^41) -> 3978496.748 | L17: from equation 5 | N17: 4077204.903 | P17: Operation, Maintenance & Replacement | Q17: =C17/J17 -> 1.04962083
A18: Power Opers. | B18: 284353000 | C18: =(1+$B$8)^6 * (1+$B$7)^10 * (1 - (1+$B$8)/(1+$B$7)) * B18 / (1 - ((1+$B$8)/(1+$B$7))^41) -> 16286736.79 | E18: from equation 5 | H18: Power Opers. | I18: 435664000 | J18: =(1+$I$8)^6 * (1+$I$7)^10 * (1 - (1+$I$8)/(1+$I$7)) * I18 / (1 - ((1+$I$8)/(1+$I$7))^41) -> 18223458.49 | L18: from equation 5 | N18: 17255097.64 | P18: Power Opers. | Q18: =C18/J18 -> 0.8937237026
A19: Foregone Power | B19: 58401000 | C19: =(1+$B$8)^6 * (1+$B$7)^10 * (1 - (1+$B$8)/(1+$B$7)) * B19 / (1 - ((1+$B$8)/(1+$B$7))^41) -> 3345003.272 | E19: from equation 5 | H19: Foregone Power | I19: 88843000 | J19: =(1+$I$8)^6 * (1+$I$7)^10 * (1 - (1+$I$8)/(1+$I$7)) * I19 / (1 - ((1+$I$8)/(1+$I$7))^41) -> 3716227.924 | L19: from equation 5 | N19: 3530615.598 | P19: Foregone Power | Q19: 0.9001071356
N20: =SUM(N17:N19) -> 24862918.14 | P20: sum
A23: Page 5-5, Table 5-3, Pump Storage Configuration | H23: Page 5-6, Table 5-4, Pump Storage Configuration
B24: 0.0414 | C24: Discount Rate | I24: 0.03 | J24: Discount Rate
B25: 0.025 | C25: Escalation Rate | I25: 0.025 | J25: Escalation Rate
B27: PV, 2010$ | C27: Annual, 2026 | D27: PV, 2015$ | I27: PV, 2010$ | J27: Annual, 2026 | K27: PV, 2015$
A28: Benefits | H28: Benefits | P28: Benefits
A29: Power-Inline | B29: 45167000 | C29: =(1+$B$25)^6 * (1+$B$24)^10 * (1 - (1+$B$25)/(1+$B$24)) * B29 / (1 - ((1+$B$25)/(1+$B$24))^41) -> 2587006.435 | E29: from equation 5 | H29: Power-Inline | I29: 69561000 | J29: =(1+$I$25)^6 * (1+$I$24)^10 * (1 - (1+$I$25)/(1+$I$24)) * I29 / (1 - ((1+$I$25)/(1+$I$24))^41) -> 2909678.091 | L29: from equation 5 | N29: =AVERAGE(C29,J29) -> 2748342.263 | P29: Power-Inline | Q29: =C29/J29 -> 0.8891040018
A30: Power-Pump Stations | B30: 1261042000 | C30: =(1+$B$25)^6 * (1+$B$24)^10 * (1 - (1+$B$25)/(1+$B$24)) * B30 / (1 - ((1+$B$25)/(1+$B$24))^41) -> 72228037.47 | E30: from equation 5 | H30: Power-Pump Stations | I30: 1785425000 | J30: =(1+$I$25)^6 * (1+$I$24)^10 * (1 - (1+$I$25)/(1+$I$24)) * I30 / (1 - ((1+$I$25)/(1+$I$24))^41) -> 74682825.23 | L30: from equation 5 | N30: =AVERAGE(C30,J30) -> 73455431.35 | P30: Power-Pump Stations | Q30: 0.9671304915
N31: =SUM(N29:N30) -> 76203773.61 | P31: sum
A32: Costs | H32: Costs | P32: Costs
A33: Capital Construction | B33: 1482378000 | D33: =(1 -((1+B25)/(1+$I$3))^4)/(1- (1+B25)/(1+$I$3) )*(1/(1+B25))*(1 - (1+B25)/(1+B24) )/(1-((1+B25)/(1+B24))^4)*(1+B24)^6 *B33 -> 1848441823 | E33: from equation 6 | H33: Capital Construction | I33: 1617637000 | K33: =(1 -((1+I25)/(1+$I$3))^4)/(1- (1+I25)/(1+$I$3) )*(1/(1+I25))*(1 - (1+I25)/(1+I24) )/(1-((1+I25)/(1+I24))^4)*(1+I24)^6 *I33 -> 1857536020 | L33: from equation 6 | O33: =AVERAGE(D33,K33) -> 1852988922 | P33: Capital Construction | Q33: =D33/K33 -> 0.9951041613
A34: Operation, Maintenance & Replacement | B34: 96015000 | C34: 5499400.51 | E34: from equation 5 | H34: Operation, Maintenance & Replacement | I34: 125256000 | J34: =(1+$I$25)^6 * (1+$I$24)^10 * (1 - (1+$I$25)/(1+$I$24)) * I34 / (1 - ((1+$I$25)/(1+$I$24))^41) -> 5239353.071 | L34: from equation 5 | N34: 5369376.79 | P34: Operation, Maintenance & Replacement | Q34: =C34/J34 -> 1.049633502
A35: Power Opers. | B35: 284353000 | C35: 16286736.79 | E35: from equation 5 | H35: Power Opers. | I35: 435664000 | J35: =(1+$I$25)^6 * (1+$I$24)^10 * (1 - (1+$I$25)/(1+$I$24)) * I35 / (1 - ((1+$I$25)/(1+$I$24))^41) -> 18223458.49 | L35: from equation 5 | N35: 17255097.64 | P35: Power Opers. | Q35: 0.8937237026
A36: Power Pump Station Opers. | B36: 700345000 | C36: 40113291.15 | E36: from equation 5 | H36: Power Pump Station Opers. | I36: 971635000 | J36: =(1+$I$25)^6 * (1+$I$24)^10 * (1 - (1+$I$25)/(1+$I$24)) * I36 / (1 - ((1+$I$25)/(1+$I$24))^41) -> 40642674.37 | L36: from equation 5 | N36: 40377982.76 | P36: Power Pump Station Opers. | Q36: 0.9869746953
A37: Foregone Power | B37: 58401000 | C37: =(1+$B$25)^6 * (1+$B$24)^10 * (1 - (1+$B$25)/(1+$B$24)) * B37 / (1 - ((1+$B$25)/(1+$B$24))^41) -> 3345003.272 | E37: from equation 5 | H37: Foregone Power | I37: 88843000 | J37: =(1+$I$25)^6 * (1+$I$24)^10 * (1 - (1+$I$25)/(1+$I$24)) * I37 / (1 - ((1+$I$25)/(1+$I$24))^41) -> 3716227.924 | L37: from equation 5 | N37: 3530615.598 | P37: Foregone Power | Q37: 0.9001071356
N38: =SUM(N34:N37) -> 66533072.79 | P38: sum

Sheet Revenues and Expenses
B1: WCWCD Revenue Stream | I1: WCWCD Revenue Stream | K1: LPP Capital Costs
A2: Source: 2013 WCWCD Audited Financial Statement | H2: Source: 2013 WCWCD Audited Financial Statement
A3: Property Tax | B3: 9938660 | D3: Total Service Area Property Valuation | F3: 10240302002 | H3: Long Term Debt | K3: KCWCD | L3: =L5-L4 -> 53200000
D4: 2013 Property Tax Collection Rate | F4: =B3/F3 -> 0.000970543642 | H4: Notes Payable | I4: 1165000 | K4: WCWCD | L4: 912500000 | N4: Source: Facts: Lake Powell Pipeline Project - WCWCD (2012)
A5: Impact Fees | D5: Maximum Legal Property Tax Rate | F5: 0.001 | H5: GO Bonds | I5: 2680000 | K5: Total | L5: 965700000 | N5: =L4/L5 -> 0.9449104277 | O5: WCWCD share of capital costs
A6: Total | B6: 5919316 | D6: Additional Revenue if use Max. Rate | F6: =(F5-F4)*F3 -> 301642.002 | H6: Revenue Bonds | I6: 67291912
H7: Total | I7: =SUM(I4:I6) -> 71136912 | K7: FERC Low Cost Estimate for WCWCD (Baseline NED Assumptions) | L7: =N5*DSWRESR!O16 -> 1328461944 | N7: Source: 2012 Draft Study Report 10: Socioeconomics and Water Resource Economics - Page 5-3
A8: Cost per ERU | B8: 6102 | H8: Total with interest | I8: 94317144 | K8: FERC High Cost Estimate for WCWCD (Pump Storage Social Time Preference) | L8: =N5*DSWRESR!O33 -> 1750908555 | N8: Source: 2012 Draft Study Report 10: Socioeconomics and Water Resource Economics - Page 5-6
A9: Total New 2013 ERU's | B9: =B6/B8 -> 970.0616191 | H9: 2013 Debt Payments | I9: ='First Scenario'!I24 -> 7026322
D10: Note: Equivalent Residential Unit (ERU) is the metric used to determine cost of impact fee per lot, equivalent to 1 ERU per 10,000 sq. ft. of irrigable land | H10: Operating Expenses | K10: LPP Operation and Power Costs
A11: Water Availability Surcharge | H11: General Government | I11: 4443620
A12: Fee/ ERU | B12: 1.75 | H12: Water and Power Utilities | I12: 8788016 | N12: Note: Since WCWCD is responsible for 94.5% (N5) of capital costs, it was assumed they would be responsible for 94.5% of OM&R costs.
A13: 2013 Total | B13: 1248977 | H13: Total Operating Expenses | I13: =SUM(I11:I12) -> 13231636
A14: Total ERU's | B14: =B13/B12 -> 713701.1429 | D14: Note: The Water Availability Surcharge is charged to all water bills as a monthly fee | K14: FERC Low Cost Estimate for WCWCD (Baseline NED Assumptions) | L14: =N5*DSWRESR!N20 -> 23493230.61 | N14: Source: 2012 Draft Study Report 10: Socioeconomics and Water Resource Economics - Page 5-3
H15: Total Expenses | I15: =I13+I9 -> 20257958 | K15: FERC High Cost Estimate for WCWCD (Pump Storage Social Time Preference) | L15: =N5*DSWRESR!N38 -> 62867794.27 | N15: Source: 2012 Draft Study Report 10: Socioeconomics and Water Resource Economics - Page 5-6
A16: 2013 ERU Growth | B16: =B9/B14 -> 0.001359198635
K17: LPP Annual Power Revenues
A18: Operating Revenues | K18: FERC Low Cost Estimate for WCWCD (Baseline NED Assumptions) | L18: =N5*DSWRESR!N14 -> 9947746.963
A19: Power sale revenue | B19: 926134 | K19: FERC High Cost Estimate for WCWCD (Pump Storage Social Time Preference) | L19: =N5*DSWRESR!N31 -> 72005740.31
A20: water sales revenue | B20: 7013377
A21: Water Development and Connection Fees | B21: 1379171 | D21: =B21+B19 -> 2305305
A22: Total Operating Revenues | B22: =B19+B20+B21 -> 9318682
A24: Real Property
A25: Acres | B25: 1000 | C25: Annual | D25: 1200 | E25: Annual | F25: According to page 7 of the 2013 WCWCDAFS the District has between 1000-1200 acres in real property that can be sold at market value for additional funds. The District claims this property is valued between $50,000-$125,000 per acre.
A26: Low Value | B26: =50000*B25 -> 50000000 | C26: =B26/50 -> 1000000 | D26: =50000*D25 -> 60000000 | E26: =D26/50 -> 1200000
A27: High Value | B27: =125000*B25 -> 125000000 | C27: =B27/50 -> 2500000 | D27: =125000*D25 -> 150000000 | E27: =D27/50 -> 3000000
A28: Average | B28: =(B27+B26)/2 -> 87500000 | C28: 1750000 | D28: =(D27+D26)/2 -> 105000000 | E28: 2100000
A32: Total Gross Revenues | B32: =E27+B22+B13+B6+B3 -> 29425635 | F32: app. GPCD w/ cons. in 2013 | G32: 287.8254
F33: app. population in 2013 | G33: 151208.5888
A34: Net Revenues | B34: =B32-I15 -> 9167677 | F34: app. consumption in 2013 | G34: =G32*G33 -> 43521672.55 | H34: gallons per day
F35: app. consumption in 2013 | G35: =G34/1000 -> 43521.67255 | H35: thousand gallons per day
F36: app. consumption in 2013 | G36: =G35*365 -> 15885410.48 | H36: thousand gallons per year
F37: =A20 -> water sales revenue | G37: =B20 -> 7013377 | H37: per year
F38: implied 2013 wholesale price of water | G38: =G37/G36 -> 0.4414980027 | H38: per thousand gallons
F39: implied 2013 wholesale price of water | G39: =G38/1000 -> 0.0004414980027 | H39: per gallon
F40: implied 2013 wholesale price of water | G40: =G39*325853 -> 143.8634487 | H40: per acre-foot
F41: 2013 retail price of water, 15,000--20,000 gallons monthly usage | G41: 1 | H41: per thousand gallons | I41: https://web.archive.org/web/20140604140321/www.sgcity.org/departments/finance/utilities#tab-3
F42: 2013 difference between wholesale and retail price of water | G42: =G41-G38 -> 0.5585019973 | H42: per thousand gallons
F43: 2013 difference between wholesale and retail price of water | G43: =G42/1000 -> 0.0005585019973 | H43: per gallon
F44: 2013 difference between wholesale and retail price of water | G44: =G43*325853 -> 181.9895513 | H44: per acre-foot
F46: app. consumption in 2013 | G46: =G36*1000 -> 1.588541048e+10 | H46: gallons per year
F47: app. consumption in 2013 | G47: =G46/325853 -> 48750.23548 | H47: acre-feet per year
G48: If 2013 quantity (in acre-feet/yr) is equal to a constant times 2013 population times (2013 retail price)^(-1/2), what is the constant?
G49: =G47/(G33*(G50^(-1/2))) -> 5.819840996
F50: 2013 retail price of water, 15,000--20,000 gallons monthly usage | G50: =(G41/1000)*325853 -> 325.853 | H50: per acre-foot

Sheet First Scenario
B1: ='Revenues and Expenses'!B3 -> 9938660 | C1: 2013 Property Tax Collections | O1: Scenario A | P1: Scenario B | Q1: DSWRESR!i3 gives the FERC "escalation rate"
B2: ='Revenues and Expenses'!B20 -> 7013377 | C2: 2013 water sales revenue Revenue | O2: FERC Low Cost | P2: FERC High Cost Estimate
B3: ='Revenues and Expenses'!B8 -> 6102 | C3: 2013 Impact Fee per ERU | N3: Cost Estimate | O3: ='Revenues and Expenses'!L7 -> 1328461944 | P3: ='Revenues and Expenses'!$L$8 -> 1750908555
B4: ='Population Estimates'!I9 -> 0.0330941162 | C4: GOPB 50-Year Household Growth Rate Projection | G4: =EXP('Population Estimates'!I10*(A73-A24)) -> 4.15789775 | H4: Factor by which # of people will grow, 2015--2064 | N4: LPP O&M Costs (Column K) | O4: ='Revenues and Expenses'!$L$14 -> 23493230.61 | P4: ='Revenues and Expenses'!$L$15 -> 62867794.27
B5: =1+B4 -> 1.033094116 | C5: GOPB 50-Year Household Growth Rate Projection, plus one. | N5: LPP Power sale revenue (Column F) | O5: ='Revenues and Expenses'!$L$18 -> 9947746.963 | P5: ='Revenues and Expenses'!$L$19 -> 72005740.31
B6: 1.04 | C6: <- enter 1 plus assumed interest rate on reserves (the interest rate on savings) | N6: A | O6: <- enter A or B (capitalized) for which Scenario you want to analyze
C7: Q µ P^(-1/2) is the assumed demand curve, so revenues R = P^(1/2), so to increase R by a factor of "x" requires P to go up by a factor of "x^2". | N7: =IF($N$6="A", $O$3,$P$3) -> 1328461944 | O7: Loan Amount
B8: =G4^2 -> 17.2881137 | C8: If water price rises by a factor > this, (Q_2060 under new water price) < (Q_2010 under current water price). | N8: =A73 -> 2064 | O8: year when all debt has to be paid back
C9: Given unchanged impact fees: (see Column P) | N9: =A24 -> 2015 | O9: initial year of spreadsheet
B10: =S75 -> 3.052996508 | C10: The factor by which water sales revenue needs to increase to eliminate the debt by 2062, minus one | N10: 0 | O10: <- enter number of initial payment-free years (can be zero); water rates & impact fees don't change during this time
B11: =B10+1 -> 4.052996508 | C11: The factor by which water sales revenue needs to increase to eliminate the debt by 2062. | I11: ='Population Estimates'!I12*B13/G4 -> 17.50539768 | J11: gal/per person/day in 2064 w/ these water rate increases | N11: 0.04 | O11: <- enter interest rate (the interest rate on debt) | U11: Total Expected Project Costs
B12: =B11^2 -> 16.4267807 | C12: The factor by which water prices need to increase to eliminate the debt by 2062. | N12: =N8-N9+1-N10 -> 50 | O12: years allowed for paying back the loan | U12: Cost w/ interest and O&M | V12: =K74+L74 -> 3092008489
B13: =1/B11 -> 0.2467310292 | C13: The factor by which water demanded will change vs. base case when water prices rise enough to eliminate debt by 2062 (since revenue = PQ µ B5^(-2t) Q^(-2) Q = B5^(-2t) (1/Q) ). | N13: =N7*(1+N11)^N10 -> 1328461944 | O13: Loan Amount after initial years of negative amortization | U13: minus power sale revenue | V13: =V12-G74 -> 3092008489
C14: Given unchanged water prices: (see Column R) | N14: =-PMT(N11,N12,N13) -> 61840169.77 | O14: Annual Debt Service
B15: =U75 -> 2.431292683 | C15: The factor by which Impact Fees need to increase to eliminate the debt by 2062, minus one. | N15: If either this -> | O15: =R73 -> -7.003545761e-07 | P15: or this -> | Q15: =T73 -> 2.682209015e-07 | R15: is not zero,
B16: =B15+1 -> 3.431292683 | C16: The factor by which Impact Fees need to increase to eliminate the debt by 2062. | O16: click on this button -> | Q16: to make them zero.
B17: =B3*B16 -> 20937.74795 | C17: 2013 average Impact Fee per ERU, if Impact Fees increased as much as needed to eliminate the debt by 2062. | N17: (This will ensure that R75 and T75 change in order to make Q73, S73, and hence U73 equal to zero.)
C18: Given Split Between Impact Fees and Water Rates: (see Column T) | M18: 0.5 | N18: <- enter Impact Fees' portion of Split financing
B19: =B10*$M$19 + 1 -> 2.526498254 | C19: The factor by which water sales revenue needs to increase to eliminate the debt by 2062. | M19: =1-M18 -> 0.5 | N19: Water Rates
B20: =B19^2 -> 6.383193428 | C20: The factor by which water prices need to increase to eliminate the debt by 2062.
B21: =1+B15*$M$18 -> 2.215646342 | C21: The factor by which Impact Fees need to increase to eliminate the debt by 2062. | J21: =1/B19 -> 0.3958047461 | K21: The factor by which water demanded will change vs. base case if water prices behave this way.
B22: =B3*B21 -> 13519.87398 | C22: 2013 average Impact Fee per ERU, if Impact Fees increased as much as needed to eliminate the debt by 2062. | J22: ='Population Estimates'!I12*J21/G4 -> 28.08207588 | K22: gal/per person/day in 2064 w/ these water rate increases
A23: Year | B23: Property Taxes | C23: water sales revenue | D23: Power sale revenue and Surcharges | E23: Impact Fees | F23: Real Estate sale revenue | G23: LPP Power sale revenue | H23: TOTAL REVENUES | I23: Annual Debt Service on Existing Debt | J23: Existing O&M Costs | K23: Annual LPP Debt Service | L23: LPP O&M Costs | M23: Total Annual Debt Service | N23: TOTAL EXPENSES | O23: Net Annual Surplus (Deficit) | P23: Cumulative Surplus (Deficit) | Q23: Repayment Option 1: Annual Surplus (Deficit) w/ Increased Water Rate sale revenue | R23: Repayment Option 1: Cumulative Surplus (Deficit) w/ Increased Water Rate sale revenue | S23: Repayment Option 2: Annual Surplus (Deficit) w/ Increased Impact Fees | T23: Repayment Option 2: Cumulative Surplus (Deficit) w/ Increased Impact Fees | U23: Repayment Option 3: Annual Surplus (Deficit) w/ 50/50 Split Between Impact Fees and Water Rates | V23: Repayment Option 3: Cumulative Surplus (Deficit) w/ Split Between Impact Fees and Water Rates
A24: 2015 | B24: ='Revenues and Expenses'!B3*B5 -> 10267571.17 | C24: ='Revenues and Expenses'!B20*$B$5^2 -> 7485261.221 | D24: =('Revenues and Expenses'!B19+'Revenues and Expenses'!B21) * $B$5 -> 2381597.032 | E24: =$B$3*'Population Estimates'!$E$4*$B$5^(A24-$A$24)*$B$4 -> 9399311.126 | F24: ='Revenues and Expenses'!$D$27/10 -> 15000000 | G24: 0 | H24: =B24+C24+E24+D24+G24+F24 -> 44533740.55 | I24: 7026322 | J24: ='Revenues and Expenses'!I13 -> 13231636 | K24: =IF(ROW()-24<$N$10,0,$N$14) -> 61840169.77 | L24: 0 | M24: =K24+I24 -> 68866491.77 | N24: =J24+M24+L24 -> 82098127.77 | O24: =H24-N24 -> -37564387.23 | P24: =O24 -> -37564387.23 | Q24: =IF(ROW()-24<$N$10,O24,O24+$B$10*C24) -> -14711910.85 | R24: =Q24 -> -14711910.85 | S24: =IF(ROW()-24<$N$10,O24,O24+$B$15*E24) -> -14711910.85 | T24: =S24 -> -14711910.85 | U24: =IF(ROW()-24<$N$10,O24,O24 + $M$19*C24*$B$10 + $M$18*E24*$B$15) -> -14711910.85 | V24: =U24 -> -14711910.85
A25: =A24+1 -> 2016 | B25: =B24*$B$5 -> 10607367.36 | C25: =C24*$B$5 -> 7732979.326 | D25: =D24*$B$5 -> 2460413.88 | E25: =$B$3*'Population Estimates'!$E$4*$B$5^(A25-$A$24)*$B$4 -> 9710373.021 | F25: ='Revenues and Expenses'!$D$27/10 -> 15000000 | G25: 0 | H25: =B25+C25+E25+D25+G25+F25 -> 45511133.59 | I25: 7039458 | J25: =J24*$B$5 -> 13669525.3 | K25: 61840169.77 | L25: 0 | M25: =K25+I25 -> 68879627.77 | N25: =J25+M25+L25 -> 82549153.07 | O25: -37038019.48 | P25: =P24*$B$6+O25 -> -76104982.2 | Q25: =IF(ROW()-24<$N$10,O25,O25+$B$10*C25) -> -13429260.6 | R25: =R24*$B$6+Q25 -> -28729647.89 | S25: =IF(ROW()-24<$N$10,O25,O25+$B$15*E25) -> -13429260.6 | T25: =T24*$B$6+S25 -> -28729647.89 | U25: =IF(ROW()-24<$N$10,O25,O25 + $M$19*C25*$B$10 + $M$18*E25*$B$15) -> -13429260.6 | V25: =V24*$B$6+U25 -> -28729647.89
A26: =A25+1 -> 2017 | B26: 10958408.81 | C26: 7988895.442 | D26: 2541839.103 | E26: =$B$3*'Population Estimates'!$E$4*$B$5^(A26-$A$24)*$B$4 -> 10031729.23 | F26: ='Revenues and Expenses'!$D$27/10 -> 15000000 | G26: 0 | H26: 46520872.59 | I26: 7048107 | J26: 14121906.16 | K26: 61840169.77 | L26: 0 | M26: 68888276.77 | N26: =J26+M26+L26 -> 83010182.93 | O26: -36489310.34 | P26: -115638491.8 | Q26: -12099240.45 | R26: -41978074.26 | S26: -12099240.45 | T26: -41978074.26 | U26: -12099240.45 | V26: -41978074.26
A27: 2018 | B27: 11321067.66 | C27: 8253280.876 | D27: 2625959.022 | E27: =$B$3*'Population Estimates'!$E$4*$B$5^(A27-$A$24)*$B$4 -> 10363720.45 | F27: ='Revenues and Expenses'!$D$27/10 -> 15000000 | G27: 0 | H27: 47564028.01 | I27: 7048318 | J27: 14589258.16 | K27: 61840169.77 | L27: 0 | M27: 68888487.77 | N27: 83477745.94 | O27: -35913717.92 | P27: -156177749.4 | Q27: -10716480.23 | R27: -54373677.46 | S27: -10716480.23 | T27: -54373677.46 | U27: -10716480.23 | V27: -54373677.46
A28: 2019 | B28: 11695728.39 | C28: =C27*$B$5 -> 8526415.913 | D28: =D27*$B$5 -> 2712862.815 | E28: =$B$3*'Population Estimates'!$E$4*$B$5^(A28-$A$24)*$B$4 -> 10706698.62 | F28: ='Revenues and Expenses'!$D$27/10 -> 15000000 | G28: 0 | H28: 48641705.74 | I28: 7050648 | J28: 15072076.77 | K28: 61840169.77 | L28: 0 | M28: 68890817.77 | N28: =J28+M28+L28 -> 83962894.54 | O28: -35321188.8 | P28: -197746048.2 | Q28: -9290070.794 | R28: -65838695.35 | S28: -9290070.794 | T28: -65838695.35 | U28: -9290070.794 | V28: -65838695.35
A29: 2020 | B29: 12082788.19 | C29: 8808590.112 | D29: 2802642.612 | E29: =$B$3*'Population Estimates'!$E$4*$B$5^(A29-$A$24)*$B$4 -> 11061027.34 | F29: ='Revenues and Expenses'!$D$27/10 -> 15000000 | G29: 0 | H29: 49755048.26 | I29: 6451090 | J29: 15570873.83 | K29: 61840169.77 | L29: 0 | M29: 68291259.77 | N29: 83862133.6 | O29: -34107085.34 | P29: -239762975.5 | Q29: -7214490.491 | R29: -75686733.66 | S29: -7214490.491 | T29: -75686733.66 | U29: -7214490.491 | V29: -75686733.66
A30: 2021 | B30: 12482657.38 | C30: 9100102.616 | D30: 2895393.592 | E30: =$B$3*'Population Estimates'!$E$4*$B$5^(A30-$A$24)*$B$4 -> 11427082.27 | F30: ='Revenues and Expenses'!$D$27/10 -> 15000000 | G30: 0 | H30: 50905235.86 | I30: 6456332 | J30: 16086178.13 | K30: 61840169.77 | L30: 0 | M30: 68296501.77 | N30: 84382679.91 | O30: -33477444.05 | P30: -282830938.5 | Q30: -5694862.534 | R30: -84409065.54 | S30: -5694862.534 | T30: -84409065.54 | U30: -5694862.534 | V30: -84409065.54
A31: 2022 | B31: 12895759.9 | C31: 9401262.47 | D31: 2991214.084 | E31: =$B$3*'Population Estimates'!$E$4*$B$5^(A31-$A$24)*$B$4 -> 11805251.46 | F31: ='Revenues and Expenses'!$D$27/10 -> 15000000 | G31: 0 | H31: 52093487.91 | I31: 6138580 | J31: 16618535.98 | K31: 61840169.77 | L31: 0 | M31: 67978749.77 | N31: 84597285.76 | O31: -32503797.85 | P31: -326647973.9 | Q31: -3801776.354 | R31: -91587204.51 | S31: -3801776.354 | T31: -91587204.51 | U31: -3801776.354 | V31: -91587204.51
A32: 2023 | B32: 13322533.68 | C32: 9712388.942 | D32: 3090205.671 | E32: =$B$3*'Population Estimates'!$E$4*$B$5^(A32-$A$24)*$B$4 -> 12195935.82 | F32: ='Revenues and Expenses'!$D$27/10 -> 15000000 | G32: 0 | H32: 53321064.11 | I32: 5095230 | J32: 17168511.74 | K32: 61840169.77 | L32: 0 | M32: 66935399.77 | N32: 84103911.52 | O32: -30782847.41 | P32: -370496740.3 | Q32: -1130957.881 | R32: -96381650.58 | S32: -1130957.881 | T32: -96381650.58 | U32: -1130957.881 | V32: -96381650.58
A33: 2024 | B33: 13763431.15 | C33: 10033811.87 | D33: 3192473.297 | E33: =$B$3*'Population Estimates'!$E$4*$B$5^(A33-$A$24)*$B$4 -> 12599549.54 | F33: ='Revenues and Expenses'!$D$27/10 -> 15000000 | G33: 0 | H33: 54589265.86 | I33: 5101740 | J33: 17736688.47 | K33: 61840169.77 | L33: 0 | M33: 66941909.77 | N33: 84678598.24 | O33: -30089332.38 | P33: -415405942.3 | Q33: 543860.2222 | R33: -99693056.38 | S33: 543860.2222 | T33: -99693056.38 | U33: 543860.2222 | V33: -99693056.38
A34: 2025 | B34: 14218919.74 | C34: 10365872.01 | D34: 3298125.379 | E34: =$B$3*'Population Estimates'!$E$4*$B$5^(A34-$A$24)*$B$4 -> 13016520.49 | F34: 0 | G34: 0 | H34: 40899437.62 | I34: 5109185 | J34: 18323668.49 | K34: 61840169.77 | L34: 0 | M34: 66949354.77 | N34: 85273023.27 | O34: -44373585.65 | P34: -476395765.6 | Q34: -12726614.61 | R34: -116407393.2 | S34: -12726614.61 | T34: -116407393.2 | U34: -12726614.61 | V34: -116407393.2
A35: 2026 | B35: 14689482.32 | C35: 10708921.38 | D35: 3407273.923 | E35: =$B$3*'Population Estimates'!$E$4*$B$5^(A35-$A$24)*$B$4 -> 13447290.74 | F35: 0 | G35: =IF($N$6="A", $O$5,$P$5) -> 9947746.963 | H35: 52200715.33 | I35: 5099965 | J35: 18930074.11 | K35: 61840169.77 | L35: =IF($N$6="A", $O$4,$P$4) -> 23493230.61 | M35: 66940134.77 | N35: 109363439.5 | O35: -57162724.17 | P35: -552614320.4 | Q35: -24468424.59 | R35: -145532113.6 | S35: -24468424.59 | T35: -145532113.6 | U35: -24468424.59 | V35: -145532113.6
A36: 2027 | B36: 15175617.76 | C36: 11063323.67 | D36: 3520034.642 | E36: =$B$3*'Population Estimates'!$E$4*$B$5^(A36-$A$24)*$B$4 -> 13892316.94 | F36: 0 | G36: =G35*(1+DSWRESR!$I$3) -> 10345656.84 | H36: 53996949.85 | I36: 3178350 | J36: 19556548.18 | K36: 61840169.77 | L36: =L35*(1+DSWRESR!$I$3) -> 24432959.84 | M36: 65018519.77 | N36: 109008027.8 | O36: -55011077.95 | P36: -629729971.2 | Q36: -21234789.42 | R36: -172588187.5 | S36: -21234789.42 | T36: -172588187.5 | U36: -21234789.42 | V36: -172588187.5
A37: 2028 | B37: 15677841.42 | C37: 11429454.59 | D37: 3636527.078 | E37: =$B$3*'Population Estimates'!$E$4*$B$5^(A37-$A$24)*$B$4 -> 14352070.89 | F37: 0 | G37: =G36*(1+DSWRESR!$I$3) -> 10759483.12 | H37: 55855377.09 | I37: 3178995 | J37: 20203754.86 | K37: 61840169.77 | L37: =L36*(1+DSWRESR!$I$3) -> 25410278.23 | M37: 65019164.77 | N37: 110633197.9 | O37: -54777820.78 | P37: -709696990.8 | Q37: -19883735.84 | R37: -199375450.9 | S37: -19883735.84 | T37: -199375450.9 | U37: -19883735.84 | V37: -199375450.9
A38: 2029 | B38: 16196685.72 | C38: 11807702.29 | D38: 3756874.728 | E38: =$B$3*'Population Estimates'!$E$4*$B$5^(A38-$A$24)*$B$4 -> 14827039.99 | F38: 0 | G38: =G37*(1+DSWRESR!$I$3) -> 11189862.44 | H38: 57778165.17 | I38: 3188875 | J38: 20872380.27 | K38: 61840169.77 | L38: =L37*(1+DSWRESR!$I$3) -> 26426689.36 | M38: 65029044.77 | N38: 112328114.4 | O38: -54549949.24 | P38: -792634819.7 | Q38: -18501075.39 | R38: -225851544.3 | S38: -18501075.39 | T38: -225851544.3 | U38: -18501075.39 | V38: -225851544.3
A39: 2030 | B39: 16732700.72 | C39: 12198467.76 | D39: 3881205.176 | E39: =$B$3*'Population Estimates'!$E$4*$B$5^(A39-$A$24)*$B$4 -> 15317727.77 | F39: 0 | G39: =G38*(1+DSWRESR!$I$3) -> 11637456.94 | H39: 59767558.37 | I39: 1786290 | J39: 21563133.25 | K39: 61840169.77 | L39: =L38*(1+DSWRESR!$I$3) -> 27483756.94 | M39: 63626459.77 | N39: 112673350 | O39: -52905791.59 | P39: -877246004.1 | Q39: -15663912.13 | R39: -250549518.2 | S39: -15663912.13 | T39: -250549518.2 | U39: -15663912.13 | V39: -250549518.2
A40: 2031 | B40: 17286454.66 | C40: 12602165.27 | D40: 4009650.231 | E40: =$B$3*'Population Estimates'!$E$4*$B$5^(A40-$A$24)*$B$4 -> 15824654.44 | F40: 0 | G40: =G39*(1+DSWRESR!$I$3) -> 12102955.22 | H40: 61825879.81 | I40: 1610460 | J40: 22276746.09 | K40: 61840169.77 | L40: =L39*(1+DSWRESR!$I$3) -> 28583107.21 | M40: 63450629.77 | N40: 114310483.1 | O40: -52484603.26 | P40: -964820447.5 | Q40: -14010236.71 | R40: -274581735.6 | S40: -14010236.71 | T40: -274581735.6 | U40: -14010236.71 | V40: -274581735.6
A41: 2032 | B41: 17858534.6 | C41: 13019222.79 | D41: 4142346.062 | E41: =$B$3*'Population Estimates'!$E$4*$B$5^(A41-$A$24)*$B$4 -> 16348357.39 | F41: 0 | G41: =G40*(1+DSWRESR!$I$3) -> 12587073.42 | H41: 63955534.27 | I41: 1610460 | J41: 23013975.31 | K41: 61840169.77 | L41: =L40*(1+DSWRESR!$I$3) -> 29726431.5 | M41: 63450629.77 | N41: 116191036.6 | O41: -52235502.32 | P41: -1055648768 | Q41: -12487860.61 | R41: -298052865.7 | S41: -12487860.61 | T41: -298052865.7 | U41: -12487860.61 | V41: -298052865.7
A42: 2033 | B42: 18449547.02 | C42: 13450082.46 | D42: 4279433.344 | E42: =$B$3*'Population Estimates'!$E$4*$B$5^(A42-$A$24)*$B$4 -> 16889391.83 | F42: 0 | G42: =G41*(1+DSWRESR!$I$3) -> 13090556.36 | H42: 66159011.02 | I42: 1610460 | J42: 23775602.48 | K42: 61840169.77 | L42: =L41*(1+DSWRESR!$I$3) -> 30915488.76 | M42: 63450629.77 | N42: 118141721 | O42: -51982710 | P42: -1149857428 | Q42: -10919655.22 | R42: -320894635.5 | S42: -10919655.22 | T42: -320894635.5 | U42: -10919655.22 | V42: -320894635.5
A43: 2034 | B43: 19060118.48 | C43: 13895201.05 | D43: 4421057.408 | E43: =$B$3*'Population Estimates'!$E$4*$B$5^(A43-$A$24)*$B$4 -> 17448331.33 | F43: 0 | G43: =G42*(1+DSWRESR!$I$3) -> 13614178.62 | H43: 68438886.88 | I43: 1610460 | J43: 24562435.03 | K43: 61840169.77 | L43: =L42*(1+DSWRESR!$I$3) -> 32152108.31 | M43: 63450629.77 | N43: 120165173.1 | O43: -51726286.24 | P43: -1247578012 | Q43: -9304285.955 | R43: -343034706.9 | S43: -9304285.955 | T43: -343034706.9 | U43: -9304285.955 | V43: -343034706.9
A44: 2035 | B44: 19690896.25 | C44: 14355050.45 | D44: 4567368.396 | E44: =$B$3*'Population Estimates'!$E$4*$B$5^(A44-$A$24)*$B$4 -> 18025768.43 | F44: 0 | G44: =G43*(1+DSWRESR!$I$3) -> 14158745.76 | H44: 70797829.29 | I44: 110460 | J44: 25375307.11 | K44: 61840169.77 | L44: =L43*(1+DSWRESR!$I$3) -> 33438192.65 | M44: 61950629.77 | N44: 120764129.5 | O44: -49966300.25 | P44: -1347447433 | Q44: -6140381.349 | R44: -362896476.5 | S44: -6140381.349 | T44: -362896476.5 | U44: -6140381.349 | V44: -362896476.5
A45: 2036 | B45: 20342549.06 | C45: 14830118.16 | D45: 4718521.417 | E45: =$B$3*'Population Estimates'!$E$4*$B$5^(A45-$A$24)*$B$4 -> 18622315.3 | F45: 0 | G45: =G44*(1+DSWRESR!$I$3) -> 14725095.59 | H45: 73238599.53 | I45: 110460 | J45: 26215080.48 | K45: 61840169.77 | L45: =L44*(1+DSWRESR!$I$3) -> 34775720.35 | M45: 61950629.77 | N45: 122941430.6 | O45: -49702831.07 | P45: -1451048161 | Q45: -4426532.123 | R45: -381838867.7 | S45: -4426532.123 | T45: -381838867.7 | U45: -4426532.123 | V45: -381838867.7
A46: 2037 | B46: 21015767.74 | C46: 15320907.81 | D46: 4874676.713 | E46: =$B$3*'Population Estimates'!$E$4*$B$5^(A46-$A$24)*$B$4 -> 19238604.37 | F46: 0 | G46: =G45*(1+DSWRESR!$I$3) -> 15314099.41 | H46: 75764056.05 | I46: 110460 | J46: 27082645.39 | K46: 61840169.77 | L46: =L45*(1+DSWRESR!$I$3) -> 36166749.17 | M46: 61950629.77 | N46: 125200024.3 | O46: -49435968.28 | P46: -1558526056 | Q46: -2661290.235 | R46: -399773712.6 | S46: -2661290.235 | T46: -399773712.6 | U46: -2661290.235 | V46: -399773712.6
A47: 2038 | B47: 21711266 | C47: 15827939.71 | D47: 5035999.83 | E47: =$B$3*'Population Estimates'!$E$4*$B$5^(A47-$A$24)*$B$4 -> 19875288.98 | F47: 0 | G47: =G46*(1+DSWRESR!$I$3) -> 15926663.39 | H47: 78377157.92 | I47: 110460 | J47: 27978921.61 | K47: 61840169.77 | L47: =L46*(1+DSWRESR!$I$3) -> 37613419.13 | M47: 61950629.77 | N47: 127542970.5 | O47: -49165812.6 | P47: -1670032910 | Q47: -843167.9194 | R47: -416607829 | S47: -843167.9194 | T47: -416607829 | U47: -843167.9194 | V47: -416607829
A48: 2039 | B48: 22429781.16 | C48: 16351751.39 | D48: 5202661.794 | E48: =$B$3*'Population Estimates'!$E$4*$B$5^(A48-$A$24)*$B$4 -> 20533044.1 | F48: 0 | G48: =G47*(1+DSWRESR!$I$3) -> 16563729.93 | H48: 81080968.38 | I48: 110460 | J48: 28904859.29 | K48: 61840169.77 | L48: =L47*(1+DSWRESR!$I$3) -> 39117955.9 | M48: 61950629.77 | N48: 129973445 | O48: -48892476.59 | P48: -1785726703 | Q48: 1029363.309 | R48: -432242778.9 | S48: 1029363.309 | T48: -432242778.9 | U48: 1029363.309 | V48: -432242778.9
A49: 2040 | B49: 23172074.95 | C49: 16892898.15 | D49: 5374839.288 | E49: =$B$3*'Population Estimates'!$E$4*$B$5^(A49-$A$24)*$B$4 -> 21212567.05 | F49: 0 | G49: =G48*(1+DSWRESR!$I$3) -> 17226279.12 | H49: 83878658.56 | I49: 110460 | J49: 29861440.06 | K49: 61840169.77 | L49: =L48*(1+DSWRESR!$I$3) -> 40682674.13 | M49: 61950629.77 | N49: 132494744 | O49: -48616085.41 | P49: -1905771857 | Q49: 2957873.654 | R49: -446574616.4 | S49: 2957873.654 | T49: -446574616.4 | U49: 2957873.654 | V49: -446574616.4
A50: 2041 | B50: 23938934.29 | C50: 17451953.69 | D50: 5552714.844 | E50: =$B$3*'Population Estimates'!$E$4*$B$5^(A50-$A$24)*$B$4 -> 21914578.21 | F50: 0 | G50: =G49*(1+DSWRESR!$I$3) -> 17915330.29 | H50: 86773511.31 | I50: 110460 | J50: 30849678.03 | K50: 61840169.77 | L50: =L49*(1+DSWRESR!$I$3) -> 42309981.1 | M50: 61950629.77 | N50: 135110288.9 | O50: -48336777.59 | P50: -2030339509 | Q50: 4943976.071 | R50: -459493625 | S50: 4943976.071 | T50: -459493625 | U50: 4943976.071 | V50: -459493625
A51: 2042 | B51: 24731172.16 | C51: 18029510.67 | D51: 5736477.034 | E51: =$B$3*'Population Estimates'!$E$4*$B$5^(A51-$A$24)*$B$4 -> 22639821.81 | F51: 0 | G51: =G50*(1+DSWRESR!$I$3) -> 18631943.5 | H51: 89768925.17 | I51: 110460 | J51: 31870620.86 | K51: 61840169.77 | L51: =L50*(1+DSWRESR!$I$3) -> 44002380.34 | M51: 61950629.77 | N51: 137823631 | O51: -48054705.81 | P51: -2159607795 | Q51: =IF(ROW()-24<$N$10,O51,O51+$B$10*C51) -> 6989327.306 | R51: -470884042.7 | S51: 6989327.306 | T51: -470884042.7 | U51: 6989327.306 | V51: -470884042.7
A52: 2043 | B52: 25549628.45 | C52: 18626181.39 | D52: 5926320.671 | E52: =$B$3*'Population Estimates'!$E$4*$B$5^(A52-$A$24)*$B$4 -> 23389066.7 | F52: 0 | G52: =G51*(1+DSWRESR!$I$3) -> 19377221.24 | H52: 92868418.45 | I52: 110460 | J52: 32925350.89 | K52: 61840169.77 | L52: =L51*(1+DSWRESR!$I$3) -> 45762475.56 | M52: 61950629.77 | N52: 140638456.2 | O52: -47770037.77 | P52: -2293762145 | Q52: 9095628.968 | R52: -480623775.4 | S52: 9095628.968 | T52: -480623775.4 | U52: 9095628.968 | V52: -480623775.4
A53: 2044 | B53: 26395170.82 | C53: 19242598.4 | D53: 6122447.016 | E53: =$B$3*'Population Estimates'!$E$4*$B$5^(A53-$A$24)*$B$4 -> 24163107.19 | F53: 0 | G53: =G52*(1+DSWRESR!$I$3) -> 20152310.09 | H53: 96075633.52 | I53: 110460 | J53: 34014986.28 | K53: 61840169.77 | L53: =L52*(1+DSWRESR!$I$3) -> 47592974.58 | M53: 61950629.77 | N53: 143558590.6 | O53: -47482957.12 | P53: -2432995587 | Q53: 11264628.61 | R53: -488584097.8 | S53: 11264628.61 | T53: -488584097.8 | U53: 11264628.61 | V53: -488584097.8
A54: 2045 | B54: 27268695.67 | C54: 19879415.19 | D54: 6325063.989 | E54: =$B$3*'Population Estimates'!$E$4*$B$5^(A54-$A$24)*$B$4 -> 24962763.87 | F54: 0 | G54: =G53*(1+DSWRESR!$I$3) -> 20958402.49 | H54: 99394341.21 | I54: 110460 | J54: 35140682.19 | K54: 61840169.77 | L54: =L53*(1+DSWRESR!$I$3) -> 49496693.56 | M54: 61950629.77 | N54: =J54+M54+L54 -> 146588005.5 | O54: -47193664.32 | P54: -2577509075 | Q54: 13498120.84 | R54: -494629340.9 | S54: 13498120.84 | T54: -494629340.9 | U54: 13498120.84 | V54: -494629340.9
A55: 2046 | B55: 28171129.05 | C55: 20537306.86 | D55: 6534386.392 | E55: =$B$3*'Population Estimates'!$E$4*$B$5^(A55-$A$24)*$B$4 -> 25788884.48 | F55: 0 | G55: =G54*(1+DSWRESR!$I$3) -> 21796738.59 | H55: 102828445.4 | I55: 110460 | J55: 36303632.01 | K55: 61840169.77 | L55: =L54*(1+DSWRESR!$I$3) -> 51476561.3 | M55: 61950629.77 | N55: 149730823.1 | O55: -46902377.71 | P55: -2727511816 | Q55: 15797948.44 | R55: -498616566.1 | S55: 15797948.44 | T55: -498616566.1 | U55: 15797948.44 | V55: -498616566.1
A56: 2047 | B56: 29103427.67 | C56: 21216970.88 | D56: 6750636.134 | E56: =$B$3*'Population Estimates'!$E$4*$B$5^(A56-$A$24)*$B$4 -> 26642344.82 | F56: 0 | G56: =G55*(1+DSWRESR!$I$3) -> 22668608.14 | H56: 106381987.6 | I56: 110460 | J56: 37505068.62 | K56: =IF(ROW()-24<$N$10,0,$N$14) -> 61840169.77 | L56: =L55*(1+DSWRESR!$I$3) -> 53535623.76 | M56: 61950629.77 | N56: =J56+M56+L56 -> 152991322.2 | O56: =H56-N56 -> -46609334.51 | P56: -2883221623 | Q56: 18166003.51 | R56: -500395225.2 | S56: 18166003.51 | T56: -500395225.2 | U56: 18166003.51 | V56: -500395225.2
A57: 2048 | B57: =B56*$B$5 -> 30066579.89 | C57: =C56*$B$5 -> 21919127.78 | D57: 6974042.471 | E57: =$B$3*'Population Estimates'!$E$4*$B$5^(A57-$A$24)*$B$4 -> 27524049.67 | F57: 0 | G57: =G56*(1+DSWRESR!$I$3) -> 23575352.46 | H57: 110059152.3 | I57: 110460 | J57: =J56*$B$5 -> 38746265.72 | K57: 61840169.77 | L57: =L56*(1+DSWRESR!$I$3) -> 55677048.71 | M57: 61950629.77 | N57: 156373944.2 | O57: -46314791.93 | P57: =P56*$B$6+O57 -> -3044865280 | Q57: 20604228.66 | R57: -499806805.6 | S57: 20604228.66 | T57: -499806805.6 | U57: 20604228.66 | V57: -499806805.6
A58: 2049 | B58: 31061606.78 | C58: 22644521.95 | D58: 7204842.243 | E58: =$B$3*'Population Estimates'!$E$4*$B$5^(A58-$A$24)*$B$4 -> 28434933.77 | F58: 0 | G58: =G57*(1+DSWRESR!$I$3) -> 24518366.56 | H58: 113864271.3 | I58: 110460 | J58: 40028539.14 | K58: 61840169.77 | L58: =L57*(1+DSWRESR!$I$3) -> 57904130.66 | M58: 61950629.77 | N58: 159883299.6 | O58: -46019028.28 | P58: -3212678920 | Q58: 23114618.15 | R58: -496684459.7 | S58: 23114618.15 | T58: -496684459.7 | U58: 23114618.15 | V58: -496684459.7
A59: 2050 | B59: 32089563.2 | C59: 23393922.39 | D59: 7443280.129 | E59: =$B$3*'Population Estimates'!$E$4*$B$5^(A59-$A$24)*$B$4 -> 29375962.77 | F59: 0 | G59: =G58*(1+DSWRESR!$I$3) -> 25499101.22 | H59: 117801829.7 | I59: 110460 | J59: 41353248.27 | K59: 61840169.77 | L59: =L58*(1+DSWRESR!$I$3) -> 60220295.88 | M59: 61950629.77 | N59: 163524173.9 | O59: -45722344.21 | P59: -3386908420 | Q59: 25699219.15 | R59: -490852618.9 | S59: 25699219.15 | T59: -490852618.9 | U59: 25699219.15 | V59: -490852618.9
A60: 2051 | B60: 33151538.93 | C60: 24168123.57 | D60: 7689608.907 | E60: =$B$3*'Population Estimates'!$E$4*$B$5^(A60-$A$24)*$B$4 -> 30348134.3 | F60: 0 | G60: =G59*(1+DSWRESR!$I$3) -> 26519065.27 | H60: 121876471 | I60: 110460 | J60: 42721797.47 | K60: 61840169.77 | L60: =L59*(1+DSWRESR!$I$3) -> 62629107.72 | M60: 61950629.77 | N60: 167301535 | O60: -45425063.98 | P60: -3567809821 | Q60: 28360132.89 | R60: -482126590.8 | S60: 28360132.89 | T60: -482126590.8 | U60: 28360132.89 | V60: -482126590.8
A61: 2052 | B61: 34248659.81 | C61: 24967946.26 | D61: 7944089.718 | E61: =$B$3*'Population Estimates'!$E$4*$B$5^(A61-$A$24)*$B$4 -> 31352478.98 | F61: 0 | G61: =G60*(1+DSWRESR!$I$3) -> 27579827.88 | H61: 126093002.7 | I61: 0 | J61: 44135637.6 | K61: 61840169.77 | L61: =L60*(1+DSWRESR!$I$3) -> 65134272.03 | M61: 61840169.77 | N61: 171110079.4 | O61: -45017076.74 | P61: -3755539291 | Q61: 31209976.01 | R61: -470201678.4 | S61: 31209976.01 | T61: -470201678.4 | U61: 31209976.01 | V61: -470201678.4
A62: 2053 | B62: 35382088.94 | C62: 25794238.38 | D62: 8206992.346 | E62: =$B$3*'Population Estimates'!$E$4*$B$5^(A62-$A$24)*$B$4 -> 32390061.56 | F62: 0 | G62: =G61*(1+DSWRESR!$I$3) -> 28683021 | H62: 130456402.2 | I62: 0 | J62: 45596267.52 | K62: 61840169.77 | L62: =L61*(1+DSWRESR!$I$3) -> 67739642.91 | M62: 61840169.77 | N62: 175176080.2 | O62: -44719677.97 | P62: -3950480541 | Q62: 34030041.72 | R62: -454979703.8 | S62: 34030041.72 | T62: -454979703.8 | U62: 34030041.72 | V62: -454979703.8
A63: 2054 | B63: 36553027.9 | C63: 26647875.9 | D63: 8478595.504 | E63: =$B$3*'Population Estimates'!$E$4*$B$5^(A63-$A$24)*$B$4 -> 33461982.02 | F63: 0 | G63: =G62*(1+DSWRESR!$I$3) -> 29830341.84 | H63: 134971823.2 | I63: 0 | J63: 47105235.7 | K63: 61840169.77 | L63: =L62*(1+DSWRESR!$I$3) -> 70449228.62 | M63: 61840169.77 | N63: 179394634.1 | O63: -44422810.92 | P63: -4152922573 | Q63: 36933061.15 | R63: -436245830.8 | S63: 36933061.15 | T63: -436245830.8 | U63: 36933061.15 | V63: -436245830.8
A64: 2055 | B64: 37762718.06 | C64: 27529763.8 | D64: 8759187.129 | E64: =$B$3*'Population Estimates'!$E$4*$B$5^(A64-$A$24)*$B$4 -> 34569376.75 | F64: 0 | G64: =G63*(1+DSWRESR!$I$3) -> 31023555.51 | H64: 139644601.2 | I64: 0 | J64: 48664141.84 | K64: 61840169.77 | L64: =L63*(1+DSWRESR!$I$3) -> 73267197.77 | M64: 61840169.77 | N64: 183771509.4 | O64: -44126908.14 | P64: -4363166384 | Q64: 39921364.62 | R64: -413774299.4 | S64: 39921364.62 | T64: -413774299.4 | U64: 39921364.62 | V64: -413774299.4
A65: 2056 | B65: 39012441.84 | C65: 28440837 | D65: 9049064.686 | E65: =$B$3*'Population Estimates'!$E$4*$B$5^(A65-$A$24)*$B$4 -> 35713419.72 | F65: 0 | G65: =G64*(1+DSWRESR!$I$3) -> 32264497.73 | H65: 144480261 | I65: 0 | J65: 50274638.6 | K65: 61840169.77 | L65: =L64*(1+DSWRESR!$I$3) -> 76197885.68 | M65: 61840169.77 | N65: 188312694.1 | O65: -43832433.08 | P65: -4581525473 | Q65: 42997342.98 | R65: -387327928.4 | S65: 42997342.98 | T65: -387327928.4 | U65: 42997342.98 | V65: -387327928.4
A66: 2057 | B66: 40303524.12 | C66: 29382061.37 | D66: 9348535.484 | E66: =$B$3*'Population Estimates'!$E$4*$B$5^(A66-$A$24)*$B$4 -> 36895323.78 | F66: 0 | G66: =G65*(1+DSWRESR!$I$3) -> 33555077.64 | H66: 149484522.4 | I66: 0 | J66: 51938433.34 | K66: 61840169.77 | L66: =L65*(1+DSWRESR!$I$3) -> 79245801.11 | M66: 61840169.77 | N66: 193024404.2 | O66: -43539881.82 | P66: -4808326373 | Q66: 46163448.93 | R66: -356657596.6 | S66: 46163448.93 | T66: -356657596.6 | U66: 46163448.93 | V66: -356657596.6
A67: 2058 | B67: 41637333.63 | C67: 30354434.72 | D67: 9657917.004 | E67: =$B$3*'Population Estimates'!$E$4*$B$5^(A67-$A$24)*$B$4 -> 38116341.91 | F67: 0 | G67: =G66*(1+DSWRESR!$I$3) -> 34897280.75 | H67: 154663308 | I67: 0 | J67: 53657289.88 | K67: 61840169.77 | L67: =L66*(1+DSWRESR!$I$3) -> 82415633.15 | M67: 61840169.77 | N67: 197913092.8 | O67: -43249784.79 | P67: -5043909213 | Q67: 49422198.41 | R67: -321501702.1 | S67: 49422198.41 | T67: -321501702.1 | U67: 49422198.41 | V67: -321501702.1
A68: 2059 | B68: 43015284.39 | C68: 31358987.91 | D68: 9977537.231 | E68: =$B$3*'Population Estimates'!$E$4*$B$5^(A68-$A$24)*$B$4 -> 39377768.56 | F68: 0 | G68: =G67*(1+DSWRESR!$I$3) -> 36293171.98 | H68: 160022750.1 | I68: 0 | J68: 55433030.47 | K68: 61840169.77 | L68: =L67*(1+DSWRESR!$I$3) -> 85712258.48 | M68: 61840169.77 | N68: 202985458.7 | O68: -42962708.65 | P68: -5288628290 | Q68: 52776171.94 | R68: -281585598.2 | S68: 52776171.94 | T68: -281585598.2 | U68: 52776171.94 | V68: -281585598.2
A69: 2060 | B69: 44438837.21 | C69: 32396785.9 | D69: 10307735.01 | E69: =$B$3*'Population Estimates'!$E$4*$B$5^(A69-$A$24)*$B$4 -> 40680941.01 | F69: 0 | G69: =G68*(1+DSWRESR!$I$3) -> 37744898.86 | H69: 165569198 | I69: 0 | J69: 57267537.62 | K69: 61840169.77 | L69: =L68*(1+DSWRESR!$I$3) -> 89140748.82 | M69: 61840169.77 | N69: 208248456.2 | O69: -42679258.23 | P69: -5542852680 | Q69: 56228016 | R69: -236621006.1 | S69: 56228016 | T69: -236621006.1 | U69: 56228016 | V69: -236621006.1
A70: 2061 | B70: 45909501.25 | C70: 33468928.9 | D70: 10648860.39 | E70: =$B$3*'Population Estimates'!$E$4*$B$5^(A70-$A$24)*$B$4 -> 42027240.8 | F70: 0 | G70: =G69*(1+DSWRESR!$I$3) -> 39254694.81 | H70: 171309226.1 | I70: 0 | J70: 59162756.17 | K70: 61840169.77 | L70: =L69*(1+DSWRESR!$I$3) -> 92706378.77 | M70: 61840169.77 | N70: 213709304.7 | O70: -42400078.57 | P70: -5806966866 | Q70: 59780444.49 | R70: -186305401.9 | S70: 59780444.49 | T70: -186305401.9 | U70: 59780444.49 | V70: -186305401.9
A71: 2062 | B71: 47428835.62 | C71: 34576553.52 | D71: 11001275.01 | E71: =$B$3*'Population Estimates'!$E$4*$B$5^(A71-$A$24)*$B$4 -> 43418095.19 | F71: 0 | G71: =G70*(1+DSWRESR!$I$3) -> 40824882.6 | H71: 177249641.9 | I71: 0 | J71: 61120695.29 | K71: 61840169.77 | L71: =L70*(1+DSWRESR!$I$3) -> 96414633.92 | M71: 61840169.77 | N71: 219375499 | O71: -42125857.05 | P71: -6081371397 | Q71: 63436240.11 | R71: -130321377.9 | S71: 63436240.11 | T71: -130321377.9 | U71: 63436240.11 | V71: -130321377.9
A72: 2063 | B72: 48998451.02 | C72: 35720834 | D72: 11365352.48 | E72: =$B$3*'Population Estimates'!$E$4*$B$5^(A72-$A$24)*$B$4 -> 44854978.67 | F72: 0 | G72: =G71*(1+DSWRESR!$I$3) -> 42457877.91 | H72: 183397494.1 | I72: 0 | J72: 63143430.69 | K72: 61840169.77 | L72: =L71*(1+DSWRESR!$I$3) -> 100271219.3 | M72: 61840169.77 | N72: 225254819.7 | O72: -41857325.65 | P72: -6366483579 | Q72: 67198255.81 | R72: -68335977.16 | S72: 67198255.81 | T72: -68335977.16 | U72: 67198255.81 | V72: -68335977.16
A73: 2064 | B73: 50620011.45 | C73: 36902983.43 | D73: 11741478.78 | E73: =$B$3*'Population Estimates'!$E$4*$B$5^(A73-$A$24)*$B$4 -> 46339414.55 | F73: 0 | G73: =G72*(1+DSWRESR!$I$3) -> 44156193.02 | H73: 189760081.2 | I73: 0 | J73: 65233106.72 | K73: 61840169.77 | L73: =L72*(1+DSWRESR!$I$3) -> 104282068 | M73: 61840169.77 | N73: 231355344.5 | O73: -41595263.31 | P73: -6662738185 | Q73: 71069416.25 | R73: -7.003545761e-07 | S73: 71069416.25 | T73: 2.682209015e-07 | U73: 71069416.25 | V73: -3.576278687e-07
F74: =SUM(F24:F73) -> 150000000 | K74: =SUM(K24:K73) -> 3092008489
R75: Estimated Factors to make Final-Year Debt (the blue cells) almost zero: | S75: 3.052996508 | T75: 0 | U75: 2.431292683

Sheet Summary with Elasticity (hidden)
I3: Average Water Sales Rev: | K3: 1517116.02
I4: Average Impact Fee Rev: | K4: 420937.9
D5: With Current P. Tax Levy | E5: With Max P. Tax Levy | F5: With Max P. Tax and GR Nuke | I5: Average Impact Fee: | K5: 6438
C6: Average Property Tax Revenues | D6: 1591855.1 | E6: 2635265.575 | F6: 2635265.575
C7: Annual Impact Fee Revenues | D7: 420937.9 | E7: 420937.9 | F7: 420937.9
C8: Average Water Sales Revenues | D8: 1517116.02 | E8: 1517116.02 | F8: 1517116.02
C9: Green River Nuclear Plant Water Lease Revenue | D9: 100000 | E9: 100000 | F9: 1000000
C10: Average Total Revenues | D10: =3529909.02+D9 -> 3629909.02 | E10: =4573319.49093572+E9 -> 4673319.491 | F10: 5573319.491
C12: Average Annual Debt Service | D12: 3251475.4 | E12: 3251475.4 | F12: 3251475.4
C13: Operating Expenses | D13: 2463533 | E13: 2463533 | F13: 2463533
C14: Average Total Expenses | D14: 5715008 | E14: 5715008 | F14: 5715008
C16: Average Annual Deficit | D16: =D14-D10 -> 2085098.98 | E16: =E14-E10 -> 1041688.509 | F16: =F14-F10 -> 141688.5091
C18: Required Increase in Impact Fees | D18: =D16/$K$4 -> 4.953459834 | E18: =E16/$K$4 -> 2.47468453 | F18: =F16/$K$4 -> 0.3366019289
C19: New Average Impact Fees | D19: =(D18+1)*$K$5 -> 38328.37441 | E19: =(E18+1)*$K$5 -> 22370.019 | F19: =(F18+1)*$K$5 -> 8605.043218
C21: Required Increase in Water Rates w/o Elasticity | D21: =D16/$K$3 -> 1.374383338 | E21: =E16/$K$3 -> 0.6866241575 | F21: =F16/$K$3 -> 0.0933933247
C22: Required Increase in Water Rates w/ 0.5 Elasticity | D22: =(D21*0.5)+D21 -> 2.061575007 | E22: =(E21*0.5)+E21 -> 1.029936236 | F22: =(F21*0.5)+F21 -> 0.1400899871 | G22: Gail: Not sure if these elasticity calculations are done correctly

Sheet Second Scenario
B1: ='Revenues and Expenses'!B3 -> 9938660 | C1: 2013 Property Tax Collections | O1: Scenario A | P1: Scenario B | Q1: DSWRESR!i3 gives the FERC "escalation rate"
B2: ='Revenues and Expenses'!B20 -> 7013377 | C2: 2013 water sales revenue Revenue | O2: FERC Low Cost | P2: FERC High Cost Estimate
B3: ='Revenues and Expenses'!B8 -> 6102 | C3: 2013 Impact Fee per ERU | N3: Cost Estimate | O3: ='Revenues and Expenses'!L7 -> 1328461944 | P3: ='Revenues and Expenses'!$L$8 -> 1750908555
B4: ='Population Estimates'!I9 -> 0.0330941162 | C4: GOPB 50-Year Household Growth Rate Projection | G4: =EXP('Population Estimates'!I10*(A73-A24)) -> 4.15789775 | N4: LPP O&M Costs (Column K) | O4: ='Revenues and Expenses'!$L$14 -> 23493230.61 | P4: ='Revenues and Expenses'!$L$15 -> 62867794.27
B5: =1+B4 -> 1.033094116 | C5: GOPB 50-Year Household Growth Rate Projection, plus one. | N5: LPP Power sale revenue (Column F) | O5: ='Revenues and Expenses'!$L$18 -> 9947746.963 | P5: ='Revenues and Expenses'!$L$19 -> 72005740.31
B6: 1.04 | C6: <- enter 1 plus assumed interest rate on reserves | N6: B | O6: <- enter A or B (capitalized) for which Scenario you want to analyze
C7: Q µ P^(-1/2) is the assumed demand curve, so revenues R = P^(1/2), so to increase R by a factor of "x" requires P to go up by a factor of "x^2". | N7: =IF($N$6="A", $O$3,$P$3) -> 1750908555 | O7: Loan Amount
B8: =G4^2 -> 17.2881137 | C8: If water price rises by a factor > this, (Q_2060 under new water price) < (Q_2010 under current water price). | N8: =A73 -> 2064 | O8: year when all debt has to be paid back
C9: Given unchanged impact fees: (see Column P) | N9: =A24 -> 2015 | O9: initial year of spreadsheet
B10: =S75 -> 3.403629062 | C10: The factor by which water sales revenue need to increase to eliminate the debt by 2062, minus one | N10: 10 | O10: <- enter number of initial payment-free years (can be zero); water rates & impact fees don't change during this time
B11: =B10+1 -> 4.403629062 | C11: The factor by which water sales revenue need to increase to eliminate the debt by 2062. | I11: ='Population Estimates'!I12*B13/G4 -> 16.11155587 | J11: gal/per person/day in 2064 w/ these water rate increases | N11: 0.04 | O11: <- enter interest rate | U11: Total Expected Project Costs
B12: =B11^2 -> 19.39194892 | C12: The factor by which water prices need to increase to eliminate the debt by 2062. | N12: =N8-N9+1-N10 -> 40 | O12: years allowed for paying back the loan | U12: Cost w/ interest and O&M | V12: =K74+L74 -> 5237815370
B13: =1/B11 -> 0.2270854302 | C13: The factor by which water demanded will change vs. base case when water prices rise enough to eliminate debt by 2062 (since revenue = PQ µ B5^(-2t) Q^(-2) Q = B5^(-2t) (1/Q) ). | N13: =N7*(1+N11)^N10 -> 2591772381 | O13: Loan Amount after initial years of negative amortization | U13: minus power sale revenue | V13: =V12-G74 -> 5237815370
C14: Given unchanged water prices: (see Column R) | N14: =-PMT(N11,N12,N13) -> 130945384.2 | O14: Annual Debt Service
B15: =U75 -> 2.710523387 | C15: The factor by which Impact Fees need to increase to eliminate the debt by 2062, minus one. | N15: If either this -> | O15: =R73 -> 4.023313522e-07 | P15: or this -> | Q15: =T73 -> 5.811452866e-07 | R15: is not zero,
B16: =B15+1 -> 3.710523387 | C16: The factor by which Impact Fees need to increase to eliminate the debt by 2062. | O16: click on this button -> | Q16: to make them zero.
B17: =B3*B16 -> 22641.61371 | C17: 2013 average Impact Fee per ERU, if Impact Fees increased as much as needed to eliminate the debt by 2062. | N17: (This will ensure that R75 and T75 change in order to make Q73, S73, and hence U73 equal to zero.)
C18: Given Split Between Impact Fees and Water Rates: (see Column T) | M18: 0.5 | N18: <- enter Impact Fees' portion of Split financing
B19: =B10*$M$19 + 1 -> 2.701814531 | C19: The factor by which water sales revenue needs to increase to eliminate the debt by 2062. | M19: =1-M18 -> 0.5 | N19: Water Rates
B20: =B19^2 -> 7.299801761 | C20: The factor by which water prices need to increase to eliminate the debt by 2062.
B21: =1+B15*$M$18 -> 2.355261694 | C21: The factor by which Impact Fees need to increase to eliminate the debt by 2062. | J21: =1/B19 -> 0.3701216306 | K21: The factor by which water demanded will change vs. base case if water prices behave this way.
B22: =B3*B21 -> 14371.80685 | C22: 2013 average Impact Fee per ERU, if Impact Fees increased as much as needed to eliminate the debt by 2062. | J22: ='Population Estimates'!I12*J21/G4 -> 26.25987641 | K22: gal/per person/day in 2064 w/ these water rate increases
A23: Year | B23: Property Taxes | C23: water sales revenue | D23: Power sale revenue and Surcharges | E23: Impact Fees | F23: Real Estate sale revenue | G23: LPP Power sale revenue | H23: TOTAL REVENUES | I23: Annual Debt Service on Existing Debt | J23: Existing O&M Costs | K23: Annual LPP Debt Service | L23: LPP O&M Costs | M23: Total Annual Debt Service | N23: TOTAL EXPENSES | O23: Net Annual Surplus (Deficit) | P23: Cumulative Surplus (Deficit) | Q23: Repayment Option 1: Annual Surplus (Deficit) w/ Increased Water Rate sale revenue | R23: Repayment Option 1: Cumulative Surplus (Deficit) w/ Increased Water Rate sale revenue | S23: Repayment Option 2: Annual Surplus (Deficit) w/ Increased Impact Fees | T23: Repayment Option 2: Cumulative Surplus (Deficit) w/ Increased Impact Fees | U23: Repayment Option 3: Annual Surplus (Deficit) w/ 50/50 Split Between Impact Fees and Water Rates | V23: Repayment Option 3: Cumulative Surplus (Deficit) w/ Split Between Impact Fees and Water Rates
A24: 2015 | B24: ='Revenues and Expenses'!B3*B5 -> 10267571.17 | C24: ='Revenues and Expenses'!B20*$B$5^2 -> 7485261.221 | D24: =('Revenues and Expenses'!B19+'Revenues and Expenses'!B21) * $B$5 -> 2381597.032 | E24: =$B$3*'Population Estimates'!$E$4*$B$5^(A24-$A$24)*$B$4 -> 9399311.126 | F24: ='Revenues and Expenses'!$D$27/10 -> 15000000 | G24: 0 | H24: =B24+C24+E24+D24+G24+F24 -> 44533740.55 | I24: 7026322 | J24: ='Revenues and Expenses'!I13 -> 13231636 | K24: =IF(ROW()-24<$N$10,0,$N$14) -> 0 | L24: 0 | M24: =K24+I24 -> 7026322 | N24: =J24+M24+L24 -> 20257958 | O24: =H24-N24 -> 24275782.55 | P24: =O24 -> 24275782.55 | Q24: =IF(ROW()-24<$N$10,O24,O24+$B$10*C24) -> 24275782.55 | R24: =Q24 -> 24275782.55 | S24: =IF(ROW()-24<$N$10,O24,O24+$B$15*E24) -> 24275782.55 | T24: =S24 -> 24275782.55 | U24: =IF(ROW()-24<$N$10,S24,S24+$B$10*H24) -> 24275782.55 | V24: =U24 -> 24275782.55
A25: =A24+1 -> 2016 | B25: =B24*$B$5 -> 10607367.36 | C25: 7732979.326 | D25: =D24*$B$5 -> 2460413.88 | E25: =$B$3*'Population Estimates'!$E$4*$B$5^(A25-$A$24)*$B$4 -> 9710373.021 | F25: ='Revenues and Expenses'!$D$27/10 -> 15000000 | G25: 0 | H25: =B25+C25+E25+D25+G25+F25 -> 45511133.59 | I25: 7039458 | J25: =J24*$B$5 -> 13669525.3 | K25: 0 | L25: 0 | M25: =K25+I25 -> 7039458 | N25: =J25+M25+L25 -> 20708983.3 | O25: 24802150.29 | P25: =P24*$B$6+O25 -> 50048964.14 | Q25: =IF(ROW()-24<$N$10,O25,O25+$B$10*C25) -> 24802150.29 | R25: =R24*$B$6+Q25 -> 50048964.14 | S25: =IF(ROW()-24<$N$10,O25,O25+$B$15*E25) -> 24802150.29 | T25: =T24*$B$6+S25 -> 50048964.14 | U25: 24802150.29 | V25: =V24*$B$6+U25 -> 50048964.14
A26: =A25+1 -> 2017 | B26: 10958408.81 | C26: 7988895.442 | D26: 2541839.103 | E26: =$B$3*'Population Estimates'!$E$4*$B$5^(A26-$A$24)*$B$4 -> 10031729.23 | F26: ='Revenues and Expenses'!$D$27/10 -> 15000000 | G26: 0 | H26: 46520872.59 | I26: 7048107 | J26: 14121906.16 | K26: 0 | L26: 0 | M26: 7048107 | N26: 21170013.16 | O26: 25350859.43 | P26: 77401782.14 | Q26: 25350859.43 | R26: 77401782.14 | S26: 25350859.43 | T26: 77401782.14 | U26: 25350859.43 | V26: 77401782.14
A27: 2018 | B27: 11321067.66 | C27: 8253280.876 | D27: 2625959.022 | E27: =$B$3*'Population Estimates'!$E$4*$B$5^(A27-$A$24)*$B$4 -> 10363720.45 | F27: ='Revenues and Expenses'!$D$27/10 -> 15000000 | G27: 0 | H27: 47564028.01 | I27: 7048318 | J27: 14589258.16 | K27: 0 | L27: 0 | M27: 7048318 | N27: 21637576.16 | O27: 25926451.85 | P27: 106424305.3 | Q27: 25926451.85 | R27: 106424305.3 | S27: 25926451.85 | T27: 106424305.3 | U27: 25926451.85 | V27: 106424305.3
A28: 2019 | B28: 11695728.39 | C28: =C27*$B$5 -> 8526415.913 | D28: 2712862.815 | E28: =$B$3*'Population Estimates'!$E$4*$B$5^(A28-$A$24)*$B$4 -> 10706698.62 | F28: ='Revenues and Expenses'!$D$27/10 -> 15000000 | G28: 0 | H28: 48641705.74 | I28: 7050648 | J28: 15072076.77 | K28: 0 | L28: 0 | M28: 7050648 | N28: =J28+M28+L28 -> 22122724.77 | O28: 26518980.97 | P28: 137200258.5 | Q28: 26518980.97 | R28: 137200258.5 | S28: 26518980.97 | T28: 137200258.5 | U28: 26518980.97 | V28: 137200258.5
A29: 2020 | B29: 12082788.19 | C29: 8808590.112 | D29: 2802642.612 | E29: =$B$3*'Population Estimates'!$E$4*$B$5^(A29-$A$24)*$B$4 -> 11061027.34 | F29: ='Revenues and Expenses'!$D$27/10 -> 15000000 | G29: 0 | H29: 49755048.26 | I29: 6451090 | J29: 15570873.83 | K29: 0 | L29: 0 | M29: 6451090 | N29: 22021963.83 | O29: 27733084.43 | P29: 170421353.2 | Q29: 27733084.43 | R29: 170421353.2 | S29: 27733084.43 | T29: 170421353.2 | U29: 27733084.43 | V29: 170421353.2
A30: 2021 | B30: 12482657.38 | C30: 9100102.616 | D30: 2895393.592 | E30: =$B$3*'Population Estimates'!$E$4*$B$5^(A30-$A$24)*$B$4 -> 11427082.27 | F30: ='Revenues and Expenses'!$D$27/10 -> 15000000 | G30: 0 | H30: 50905235.86 | I30: 6456332 | J30: 16086178.13 | K30: 0 | L30: 0 | M30: 6456332 | N30: 22542510.13 | O30: 28362725.73 | P30: 205600933.1 | Q30: 28362725.73 | R30: 205600933.1 | S30: 28362725.73 | T30: 205600933.1 | U30: 28362725.73 | V30: 205600933.1
A31: 2022 | B31: 12895759.9 | C31: 9401262.47 | D31: 2991214.084 | E31: =$B$3*'Population Estimates'!$E$4*$B$5^(A31-$A$24)*$B$4 -> 11805251.46 | F31: ='Revenues and Expenses'!$D$27/10 -> 15000000 | G31: 0 | H31: 52093487.91 | I31: 6138580 | J31: 16618535.98 | K31: 0 | L31: 0 | M31: 6138580 | N31: 22757115.98 | O31: 29336371.93 | P31: 243161342.3 | Q31: 29336371.93 | R31: 243161342.3 | S31: 29336371.93 | T31: 243161342.3 | U31: 29336371.93 | V31: 243161342.3
A32: 2023 | B32: 13322533.68 | C32: 9712388.942 | D32: 3090205.671 | E32: =$B$3*'Population Estimates'!$E$4*$B$5^(A32-$A$24)*$B$4 -> 12195935.82 | F32: ='Revenues and Expenses'!$D$27/10 -> 15000000 | G32: 0 | H32: 53321064.11 | I32: 5095230 | J32: 17168511.74 | K32: 0 | L32: 0 | M32: 5095230 | N32: 22263741.74 | O32: 31057322.37 | P32: 283945118.4 | Q32: 31057322.37 | R32: 283945118.4 | S32: 31057322.37 | T32: 283945118.4 | U32: =IF(ROW()-24<$N$10,O32,O32 + $M$19*C32*$B$10 + $M$18*E32*$B$15) -> 31057322.37 | V32: 283945118.4
A33: 2024 | B33: 13763431.15 | C33: 10033811.87 | D33: 3192473.297 | E33: =$B$3*'Population Estimates'!$E$4*$B$5^(A33-$A$24)*$B$4 -> 12599549.54 | F33: ='Revenues and Expenses'!$D$27/10 -> 15000000 | G33: 0 | H33: 54589265.86 | I33: 5101740 | J33: 17736688.47 | K33: 0 | L33: 0 | M33: 5101740 | N33: 22838428.47 | O33: 31750837.39 | P33: 327053760.5 | Q33: 31750837.39 | R33: 327053760.5 | S33: 31750837.39 | T33: 327053760.5 | U33: 31750837.39 | V33: 327053760.5
A34: 2025 | B34: 14218919.74 | C34: 10365872.01 | D34: 3298125.379 | E34: =$B$3*'Population Estimates'!$E$4*$B$5^(A34-$A$24)*$B$4 -> 13016520.49 | F34: 0 | G34: 0 | H34: 40899437.62 | I34: 5109185 | J34: 18323668.49 | K34: 130945384.2 | L34: 0 | M34: 136054569.2 | N34: 154378237.7 | O34: -113478800.1 | P34: 226657110.8 | Q34: -78197216.89 | R34: 261938694 | S34: -78197216.89 | T34: 261938694 | U34: -78197216.89 | V34: 261938694
A35: 2026 | B35: 14689482.32 | C35: 10708921.38 | D35: 3407273.923 | E35: =$B$3*'Population Estimates'!$E$4*$B$5^(A35-$A$24)*$B$4 -> 13447290.74 | F35: 0 | G35: =IF($N$6="A", $O$5,$P$5) -> 72005740.31 | H35: 114258708.7 | I35: 5099965 | J35: 18930074.11 | K35: 130945384.2 | L35: =IF($N$6="A", $O$4,$P$4) -> 62867794.27 | M35: 136045349.2 | N35: 217843217.6 | O35: -103584508.9 | P35: 132138886.3 | Q35: -67135312.9 | R35: 205280928.9 | S35: -67135312.9 | T35: 205280928.9 | U35: -67135312.9 | V35: 205280928.9
A36: 2027 | B36: 15175617.76 | C36: 11063323.67 | D36: 3520034.642 | E36: =$B$3*'Population Estimates'!$E$4*$B$5^(A36-$A$24)*$B$4 -> 13892316.94 | F36: 0 | G36: =G35*(1+DSWRESR!$I$3) -> 74885969.93 | H36: 118537262.9 | I36: 3178350 | J36: 19556548.18 | K36: 130945384.2 | L36: =L35*(1+DSWRESR!$I$3) -> 65382506.04 | M36: 134123734.2 | N36: 219062788.5 | O36: -100525525.5 | P36: 36898916.24 | Q36: -62870075.56 | R36: 150622090.5 | S36: -62870075.56 | T36: 150622090.5 | U36: -62870075.56 | V36: 150622090.5
A37: 2028 | B37: 15677841.42 | C37: 11429454.59 | D37: 3636527.078 | E37: =$B$3*'Population Estimates'!$E$4*$B$5^(A37-$A$24)*$B$4 -> 14352070.89 | F37: 0 | G37: =G36*(1+DSWRESR!$I$3) -> 77881408.72 | H37: 122977302.7 | I37: 3178995 | J37: 20203754.86 | K37: 130945384.2 | L37: =L36*(1+DSWRESR!$I$3) -> 67997806.28 | M37: 134124379.2 | N37: 222325940.4 | O37: -99348637.68 | P37: -60973764.79 | Q37: -60447013.88 | R37: 96199960.23 | S37: -60447013.88 | T37: 96199960.23 | U37: -60447013.88 | V37: 96199960.23
A38: 2029 | B38: 16196685.72 | C38: 11807702.29 | D38: 3756874.728 | E38: =$B$3*'Population Estimates'!$E$4*$B$5^(A38-$A$24)*$B$4 -> 14827039.99 | F38: 0 | G38: =G37*(1+DSWRESR!$I$3) -> 80996665.07 | H38: 127584967.8 | I38: 3188875 | J38: 20872380.27 | K38: 130945384.2 | L38: =L37*(1+DSWRESR!$I$3) -> 70717718.53 | M38: 134134259.2 | N38: 225724358 | O38: -98139390.24 | P38: -161552105.6 | Q38: -57950351.58 | R38: 42097607.05 | S38: -57950351.58 | T38: 42097607.05 | U38: -57950351.58 | V38: 42097607.05
A39: 2030 | B39: 16732700.72 | C39: 12198467.76 | D39: 3881205.176 | E39: =$B$3*'Population Estimates'!$E$4*$B$5^(A39-$A$24)*$B$4 -> 15317727.77 | F39: 0 | G39: =G38*(1+DSWRESR!$I$3) -> 84236531.68 | H39: 132366633.1 | I39: 1786290 | J39: 21563133.25 | K39: 130945384.2 | L39: =L38*(1+DSWRESR!$I$3) -> 73546427.27 | M39: 132731674.2 | N39: 227841234.8 | O39: -95474601.65 | P39: -263488791.5 | Q39: -53955542.28 | R39: -10174030.94 | S39: -53955542.28 | T39: -10174030.94 | U39: -53955542.28 | V39: -10174030.94
A40: 2031 | B40: 17286454.66 | C40: 12602165.27 | D40: 4009650.231 | E40: =$B$3*'Population Estimates'!$E$4*$B$5^(A40-$A$24)*$B$4 -> 15824654.44 | F40: 0 | G40: =G39*(1+DSWRESR!$I$3) -> 87605992.94 | H40: 137328917.5 | I40: 1610460 | J40: 22276746.09 | K40: 130945384.2 | L40: =L39*(1+DSWRESR!$I$3) -> 76488284.36 | M40: 132555844.2 | N40: 231320874.7 | O40: -93991957.15 | P40: -368020300.3 | Q40: -51098861.2 | R40: -61679853.38 | S40: -51098861.2 | T40: -61679853.38 | U40: -51098861.2 | V40: -61679853.38
A41: 2032 | B41: =B40*$B$5 -> 17858534.6 | C41: 13019222.79 | D41: 4142346.062 | E41: =$B$3*'Population Estimates'!$E$4*$B$5^(A41-$A$24)*$B$4 -> 16348357.39 | F41: 0 | G41: =G40*(1+DSWRESR!$I$3) -> 91110232.66 | H41: 142478693.5 | I41: 1610460 | J41: 23013975.31 | K41: 130945384.2 | L41: =L40*(1+DSWRESR!$I$3) -> 79547815.74 | M41: 132555844.2 | N41: 235117635.3 | O41: -92638941.78 | P41: -475380054.1 | Q41: -48326336.73 | R41: -112473384.2 | S41: -48326336.73 | T41: -112473384.2 | U41: -48326336.73 | V41: -112473384.2
A42: 2033 | B42: 18449547.02 | C42: 13450082.46 | D42: 4279433.344 | E42: =$B$3*'Population Estimates'!$E$4*$B$5^(A42-$A$24)*$B$4 -> 16889391.83 | F42: 0 | G42: =G41*(1+DSWRESR!$I$3) -> 94754641.97 | H42: 147823096.6 | I42: 1610460 | J42: 23775602.48 | K42: 130945384.2 | L42: =L41*(1+DSWRESR!$I$3) -> 82729728.37 | M42: 132555844.2 | N42: 239061175.1 | O42: -91238078.47 | P42: -585633334.7 | Q42: -45458986.91 | R42: -162431306.5 | S42: -45458986.91 | T42: -162431306.5 | U42: -45458986.91 | V42: -162431306.5
A43: 2034 | B43: 19060118.48 | C43: 13895201.05 | D43: 4421057.408 | E43: =$B$3*'Population Estimates'!$E$4*$B$5^(A43-$A$24)*$B$4 -> 17448331.33 | F43: 0 | G43: =G42*(1+DSWRESR!$I$3) -> 98544827.65 | H43: 153369535.9 | I43: 1610460 | J43: 24562435.03 | K43: 130945384.2 | L43: =L42*(1+DSWRESR!$I$3) -> 86038917.5 | M43: 132555844.2 | N43: 243157196.8 | O43: -89787660.87 | P43: -698846329 | Q43: -42493550.74 | R43: -211422109.5 | S43: -42493550.74 | T43: -211422109.5 | U43: -42493550.74 | V43: -211422109.5
A44: 2035 | B44: 19690896.25 | C44: 14355050.45 | D44: 4567368.396 | E44: =$B$3*'Population Estimates'!$E$4*$B$5^(A44-$A$24)*$B$4 -> 18025768.43 | F44: 0 | G44: =G43*(1+DSWRESR!$I$3) -> 102486620.8 | H44: 159125704.3 | I44: 110460 | J44: 25375307.11 | K44: 130945384.2 | L44: =L43*(1+DSWRESR!$I$3) -> 89480474.2 | M44: 131055844.2 | N44: 245911625.6 | O44: -86785921.27 | P44: -813586103.4 | Q44: -37926654.37 | R44: -257805648.3 | S44: -37926654.37 | T44: -257805648.3 | U44: -37926654.37 | V44: -257805648.3
A45: 2036 | B45: 20342549.06 | C45: 14830118.16 | D45: 4718521.417 | E45: =$B$3*'Population Estimates'!$E$4*$B$5^(A45-$A$24)*$B$4 -> 18622315.3 | F45: 0 | G45: =G44*(1+DSWRESR!$I$3) -> 106586085.6 | H45: 165099589.5 | I45: 110460 | J45: 26215080.48 | K45: 130945384.2 | L45: =L44*(1+DSWRESR!$I$3) -> 93059693.17 | M45: 131055844.2 | N45: 250330617.9 | O45: -85231028.36 | P45: -931360575.9 | Q45: -34754807.2 | R45: -302872681.4 | S45: -34754807.2 | T45: -302872681.4 | U45: -34754807.2 | V45: -302872681.4
A46: 2037 | B46: 21015767.74 | C46: 15320907.81 | D46: 4874676.713 | E46: =$B$3*'Population Estimates'!$E$4*$B$5^(A46-$A$24)*$B$4 -> 19238604.37 | F46: 0 | G46: =G45*(1+DSWRESR!$I$3) -> 110849529 | H46: 171299485.6 | I46: 110460 | J46: 27082645.39 | K46: 130945384.2 | L46: =L45*(1+DSWRESR!$I$3) -> 96782080.89 | M46: 131055844.2 | N46: 254920570.5 | O46: -83621084.89 | P46: -1052236084 | Q46: -31474397.8 | R46: -346461986.5 | S46: -31474397.8 | T46: -346461986.5 | U46: -31474397.8 | V46: -346461986.5
A47: 2038 | B47: 21711266 | C47: 15827939.71 | D47: 5035999.83 | E47: =$B$3*'Population Estimates'!$E$4*$B$5^(A47-$A$24)*$B$4 -> 19875288.98 | F47: 0 | G47: =G46*(1+DSWRESR!$I$3) -> 115283510.2 | H47: 177734004.7 | I47: 110460 | J47: 27978921.61 | K47: 130945384.2 | L47: =L46*(1+DSWRESR!$I$3) -> 100653364.1 | M47: 131055844.2 | N47: 259688130 | O47: -81954125.29 | P47: -1176279652 | Q47: -28081689.68 | R47: -388402155.6 | S47: -28081689.68 | T47: -388402155.6 | U47: -28081689.68 | V47: -388402155.6
A48: 2039 | B48: 22429781.16 | C48: 16351751.39 | D48: 5202661.794 | E48: =$B$3*'Population Estimates'!$E$4*$B$5^(A48-$A$24)*$B$4 -> 20533044.1 | F48: 0 | G48: =G47*(1+DSWRESR!$I$3) -> 119894850.6 | H48: 184412089 | I48: 110460 | J48: 28904859.29 | K48: 130945384.2 | L48: =L47*(1+DSWRESR!$I$3) -> 104679498.7 | M48: 131055844.2 | N48: 264640202.2 | O48: -80228113.21 | P48: -1303558952 | Q48: -24572816.95 | R48: -428511058.8 | S48: -24572816.95 | T48: -428511058.8 | U48: -24572816.95 | V48: -428511058.8
A49: 2040 | B49: 23172074.95 | C49: 16892898.15 | D49: 5374839.288 | E49: =$B$3*'Population Estimates'!$E$4*$B$5^(A49-$A$24)*$B$4 -> 21212567.05 | F49: 0 | G49: =G48*(1+DSWRESR!$I$3) -> 124690644.6 | H49: 191343024 | I49: 110460 | J49: 29861440.06 | K49: 130945384.2 | L49: =L48*(1+DSWRESR!$I$3) -> 108866678.6 | M49: 131055844.2 | N49: 269783962.9 | O49: -78440938.92 | P49: -1434142249 | Q49: -20943779.82 | R49: -466595281 | S49: -20943779.82 | T49: -466595281 | U49: -20943779.82 | V49: -466595281
A50: 2041 | B50: 23938934.29 | C50: 17451953.69 | D50: 5552714.844 | E50: =$B$3*'Population Estimates'!$E$4*$B$5^(A50-$A$24)*$B$4 -> 21914578.21 | F50: 0 | G50: =G49*(1+DSWRESR!$I$3) -> 129678270.4 | H50: 198536451.4 | I50: 110460 | J50: 30849678.03 | K50: 130945384.2 | L50: =L49*(1+DSWRESR!$I$3) -> 113221345.8 | M50: 131055844.2 | N50: 275126868.1 | O50: -76590416.66 | P50: -1568098355 | Q50: -17190439.9 | R50: -502449532.1 | S50: -17190439.9 | T50: -502449532.1 | U50: -17190439.9 | V50: -502449532.1
A51: 2042 | B51: 24731172.16 | C51: 18029510.67 | D51: 5736477.034 | E51: =$B$3*'Population Estimates'!$E$4*$B$5^(A51-$A$24)*$B$4 -> 22639821.81 | F51: 0 | G51: =G50*(1+DSWRESR!$I$3) -> 134865401.2 | H51: 206002382.9 | I51: 110460 | J51: 31870620.86 | K51: 130945384.2 | L51: =L50*(1+DSWRESR!$I$3) -> 117750199.6 | M51: 131055844.2 | N51: 280676664.7 | O51: -74674281.86 | P51: -1705496571 | Q51: -13308515.37 | R51: -535856028.8 | S51: -13308515.37 | T51: -535856028.8 | U51: -13308515.37 | V51: -535856028.8
A52: 2043 | B52: 25549628.45 | C52: 18626181.39 | D52: 5926320.671 | E52: =$B$3*'Population Estimates'!$E$4*$B$5^(A52-$A$24)*$B$4 -> 23389066.7 | F52: 0 | G52: =G51*(1+DSWRESR!$I$3) -> 140260017.2 | H52: 213751214.4 | I52: 110460 | J52: 32925350.89 | K52: 130945384.2 | L52: =L51*(1+DSWRESR!$I$3) -> 122460207.6 | M52: 131055844.2 | N52: 286441402.7 | O52: -72690188.29 | P52: -1846406623 | Q52: -9293575.989 | R52: -566583845.9 | S52: -9293575.989 | T52: -566583845.9 | U52: -9293575.989 | V52: -566583845.9
A53: 2044 | B53: 26395170.82 | C53: 19242598.4 | D53: 6122447.016 | E53: =$B$3*'Population Estimates'!$E$4*$B$5^(A53-$A$24)*$B$4 -> 24163107.19 | F53: 0 | G53: =G52*(1+DSWRESR!$I$3) -> 145870417.9 | H53: 221793741.4 | I53: 110460 | J53: 34014986.28 | K53: 130945384.2 | L53: =L52*(1+DSWRESR!$I$3) -> 127358615.9 | M53: 131055844.2 | N53: 292429446.4 | O53: -70635705.07 | P53: -1990898593 | Q53: -5141037.917 | R53: -594388237.6 | S53: -5141037.917 | T53: -594388237.6 | U53: -5141037.917 | V53: -594388237.6
A54: 2045 | B54: 27268695.67 | C54: 19879415.19 | D54: 6325063.989 | E54: =$B$3*'Population Estimates'!$E$4*$B$5^(A54-$A$24)*$B$4 -> 24962763.87 | F54: 0 | G54: =G53*(1+DSWRESR!$I$3) -> 151705234.6 | H54: 230141173.4 | I54: 110460 | J54: 35140682.19 | K54: 130945384.2 | L54: =L53*(1+DSWRESR!$I$3) -> 132452960.5 | M54: 131055844.2 | N54: =J54+M54+L54 -> 298649487 | O54: -68508313.61 | P54: -2139042850 | Q54: -846158.332 | R54: -619009925.5 | S54: -846158.332 | T54: -619009925.5 | U54: -846158.332 | V54: -619009925.5
A55: 2046 | B55: 28171129.05 | C55: 20537306.86 | D55: 6534386.392 | E55: =$B$3*'Population Estimates'!$E$4*$B$5^(A55-$A$24)*$B$4 -> 25788884.48 | F55: 0 | G55: =G54*(1+DSWRESR!$I$3) -> 157773444 | H55: 238805150.8 | I55: 110460 | J55: 36303632.01 | K55: 130945384.2 | L55: =L54*(1+DSWRESR!$I$3) -> 137751079 | M55: 131055844.2 | N55: 305110555.2 | O55: -66305404.4 | P55: -2290909968 | Q55: 3595970.112 | R55: -640174352.4 | S55: 3595970.112 | T55: -640174352.4 | U55: 3595970.112 | V55: -640174352.4
A56: 2047 | B56: 29103427.67 | C56: 21216970.88 | D56: 6750636.134 | E56: =$B$3*'Population Estimates'!$E$4*$B$5^(A56-$A$24)*$B$4 -> 26642344.82 | F56: 0 | G56: =G55*(1+DSWRESR!$I$3) -> 164084381.8 | H56: 247797761.3 | I56: 110460 | J56: 37505068.62 | K56: =IF(ROW()-24<$N$10,0,$N$14) -> 130945384.2 | L56: =L55*(1+DSWRESR!$I$3) -> 143261122.1 | M56: 131055844.2 | N56: 311822035 | O56: -64024273.69 | P56: -2446570641 | Q56: 8190425.029 | R56: -657590901.5 | S56: 8190425.029 | T56: -657590901.5 | U56: 8190425.029 | V56: -657590901.5
A57: 2048 | B57: =B56*$B$5 -> 30066579.89 | C57: 21919127.78 | D57: 6974042.471 | E57: =$B$3*'Population Estimates'!$E$4*$B$5^(A57-$A$24)*$B$4 -> 27524049.67 | F57: 0 | G57: =G56*(1+DSWRESR!$I$3) -> 170647757.1 | H57: 257131556.9 | I57: 110460 | J57: 38746265.72 | K57: 130945384.2 | L57: =L56*(1+DSWRESR!$I$3) -> 148991567 | M57: 131055844.2 | N57: 318793677 | O57: -61662120.09 | P57: -2606095586 | Q57: 12942460.26 | R57: -670952077.3 | S57: 12942460.26 | T57: -670952077.3 | U57: 12942460.26 | V57: -670952077.3
A58: 2049 | B58: 31061606.78 | C58: 22644521.95 | D58: 7204842.243 | E58: =$B$3*'Population Estimates'!$E$4*$B$5^(A58-$A$24)*$B$4 -> 28434933.77 | F58: 0 | G58: =G57*(1+DSWRESR!$I$3) -> 177473667.4 | H58: 266819572.1 | I58: 110460 | J58: 40028539.14 | K58: 130945384.2 | L58: =L57*(1+DSWRESR!$I$3) -> 154951229.7 | M58: 131055844.2 | N58: 326035613.1 | O58: -59216040.99 | P58: -2769555451 | Q58: 17857512.01 | R58: -679932648.3 | S58: 17857512.01 | T58: -679932648.3 | U58: 17857512.01 | V58: -679932648.3
A59: 2050 | B59: 32089563.2 | C59: 23393922.39 | D59: 7443280.129 | E59: =$B$3*'Population Estimates'!$E$4*$B$5^(A59-$A$24)*$B$4 -> 29375962.77 | F59: 0 | G59: =G58*(1+DSWRESR!$I$3) -> 184572614 | H59: 276875342.5 | I59: 110460 | J59: 41353248.27 | K59: 130945384.2 | L59: =L58*(1+DSWRESR!$I$3) -> 161149278.9 | M59: 131055844.2 | N59: 333558371.4 | O59: -56683028.86 | P59: -2937020698 | Q59: 22941205.26 | R59: -684188749 | S59: 22941205.26 | T59: -684188749 | U59: 22941205.26 | V59: -684188749
A60: 2051 | B60: 33151538.93 | C60: 24168123.57 | D60: 7689608.907 | E60: =$B$3*'Population Estimates'!$E$4*$B$5^(A60-$A$24)*$B$4 -> 30348134.3 | F60: 0 | G60: =G59*(1+DSWRESR!$I$3) -> 191955518.6 | H60: 287312924.3 | I60: 110460 | J60: 42721797.47 | K60: 130945384.2 | L60: =L59*(1+DSWRESR!$I$3) -> 167595250 | M60: 131055844.2 | N60: 341372891.7 | O60: -54059967.43 | P60: -3108561493 | Q60: 28199360.34 | R60: -683356938.6 | S60: 28199360.34 | T60: -683356938.6 | U60: 28199360.34 | V60: -683356938.6
A61: 2052 | B61: 34248659.81 | C61: 24967946.26 | D61: 7944089.718 | E61: =$B$3*'Population Estimates'!$E$4*$B$5^(A61-$A$24)*$B$4 -> 31352478.98 | F61: 0 | G61: =G60*(1+DSWRESR!$I$3) -> 199633739.4 | H61: 298146914.1 | I61: 0 | J61: 44135637.6 | K61: 130945384.2 | L61: =L60*(1+DSWRESR!$I$3) -> 174299060 | M61: 130945384.2 | N61: 349380081.9 | O61: -51233167.75 | P61: -3284137121 | Q61: 33748459.77 | R61: -676942756.4 | S61: 33748459.77 | T61: -676942756.4 | U61: 33748459.77 | V61: -676942756.4
A62: 2053 | B62: 35382088.94 | C62: 25794238.38 | D62: 8206992.346 | E62: =$B$3*'Population Estimates'!$E$4*$B$5^(A62-$A$24)*$B$4 -> 32390061.56 | F62: 0 | G62: =G61*(1+DSWRESR!$I$3) -> 207619088.9 | H62: 309392470.2 | I62: 0 | J62: 45596267.52 | K62: 130945384.2 | L62: =L61*(1+DSWRESR!$I$3) -> 181271022.4 | M62: 130945384.2 | N62: 357812674.2 | O62: -48420204.05 | P62: -3463922809 | Q62: 39373815.34 | R62: -664646651.3 | S62: 39373815.34 | T62: -664646651.3 | U62: 39373815.34 | V62: -664646651.3
A63: 2054 | B63: 36553027.9 | C63: 26647875.9 | D63: 8478595.504 | E63: =$B$3*'Population Estimates'!$E$4*$B$5^(A63-$A$24)*$B$4 -> 33461982.02 | F63: 0 | G63: =G62*(1+DSWRESR!$I$3) -> 215923852.5 | H63: 321065333.8 | I63: 0 | J63: 47105235.7 | K63: 130945384.2 | L63: =L62*(1+DSWRESR!$I$3) -> 188521863.3 | M63: 130945384.2 | N63: 366572483.3 | O63: -45507149.46 | P63: -3647986871 | Q63: 45192335.41 | R63: -646040182 | S63: 45192335.41 | T63: -646040182 | U63: 45192335.41 | V63: -646040182
A64: 2055 | B64: 37762718.06 | C64: 27529763.8 | D64: 8759187.129 | E64: =$B$3*'Population Estimates'!$E$4*$B$5^(A64-$A$24)*$B$4 -> 34569376.75 | F64: 0 | G64: =G63*(1+DSWRESR!$I$3) -> 224560806.6 | H64: 333181852.3 | I64: 0 | J64: 48664141.84 | K64: 130945384.2 | L64: =L63*(1+DSWRESR!$I$3) -> 196062737.9 | M64: 130945384.2 | N64: 375672263.9 | O64: -42490411.63 | P64: -3836396758 | Q64: 51210692.52 | R64: -620671096.7 | S64: 51210692.52 | T64: -620671096.7 | U64: 51210692.52 | V64: -620671096.7
A65: 2056 | B65: 39012441.84 | C65: 28440837 | D65: 9049064.686 | E65: =$B$3*'Population Estimates'!$E$4*$B$5^(A65-$A$24)*$B$4 -> 35713419.72 | F65: 0 | G65: =G64*(1+DSWRESR!$I$3) -> 233543238.8 | H65: 345759002.1 | I65: 0 | J65: 50274638.6 | K65: 130945384.2 | L65: =L64*(1+DSWRESR!$I$3) -> 203905247.4 | M65: 130945384.2 | N65: 385125270.2 | O65: -39366268.14 | P65: -4029218896 | Q65: 57435791.24 | R65: -588062149.3 | S65: 57435791.24 | T65: -588062149.3 | U65: 57435791.24 | V65: -588062149.3
A66: 2057 | B66: 40303524.12 | C66: 29382061.37 | D66: 9348535.484 | E66: =$B$3*'Population Estimates'!$E$4*$B$5^(A66-$A$24)*$B$4 -> 36895323.78 | F66: 0 | G66: =G65*(1+DSWRESR!$I$3) -> 242884968.4 | H66: 358814413.1 | I66: 0 | J66: 51938433.34 | K66: 130945384.2 | L66: =L65*(1+DSWRESR!$I$3) -> 212061457.3 | M66: 130945384.2 | N66: 394945274.9 | O66: -36130861.71 | P66: -4226518514 | Q66: 63874776.28 | R66: -547709859 | S66: 63874776.28 | T66: -547709859 | U66: 63874776.28 | V66: -547709859
A67: 2058 | B67: 41637333.63 | C67: 30354434.72 | D67: 9657917.004 | E67: =$B$3*'Population Estimates'!$E$4*$B$5^(A67-$A$24)*$B$4 -> 38116341.91 | F67: 0 | G67: =G66*(1+DSWRESR!$I$3) -> 252600367.1 | H67: 372366394.4 | I67: 0 | J67: 53657289.88 | K67: 130945384.2 | L67: =L66*(1+DSWRESR!$I$3) -> 220543915.6 | M67: 130945384.2 | N67: 405146589.7 | O67: -32780195.29 | P67: -4428359450 | Q67: 70535040.89 | R67: -499083212.5 | S67: 70535040.89 | T67: -499083212.5 | U67: 70535040.89 | V67: -499083212.5
A68: 2059 | B68: 43015284.39 | C68: 31358987.91 | D68: 9977537.231 | E68: =$B$3*'Population Estimates'!$E$4*$B$5^(A68-$A$24)*$B$4 -> 39377768.56 | F68: 0 | G68: =G67*(1+DSWRESR!$I$3) -> 262704381.8 | H68: 386433959.9 | I68: 0 | J68: 55433030.47 | K68: 130945384.2 | L68: =L67*(1+DSWRESR!$I$3) -> 229365672.2 | M68: 130945384.2 | N68: 415744086.9 | O68: -29310127 | P68: -4634803955 | Q68: 77424235.63 | R68: -441622305.4 | S68: 77424235.63 | T68: -441622305.4 | U68: 77424235.63 | V68: -441622305.4
A69: 2060 | B69: 44438837.21 | C69: 32396785.9 | D69: 10307735.01 | E69: =$B$3*'Population Estimates'!$E$4*$B$5^(A69-$A$24)*$B$4 -> 40680941.01 | F69: 0 | G69: =G68*(1+DSWRESR!$I$3) -> 273212557.1 | H69: 401036856.2 | I69: 0 | J69: 57267537.62 | K69: 130945384.2 | L69: =L68*(1+DSWRESR!$I$3) -> 238540299.1 | M69: 130945384.2 | N69: 426753220.9 | O69: -25716364.73 | P69: -4845912478 | Q69: 84550277.29 | R69: -374736920.3 | S69: 84550277.29 | T69: -374736920.3 | U69: 84550277.29 | V69: -374736920.3
A70: 2061 | B70: 45909501.25 | C70: 33468928.9 | D70: 10648860.39 | E70: =$B$3*'Population Estimates'!$E$4*$B$5^(A70-$A$24)*$B$4 -> 42027240.8 | F70: 0 | G70: =G69*(1+DSWRESR!$I$3) -> 284141059.4 | H70: 416195590.7 | I70: 0 | J70: 59162756.17 | K70: 130945384.2 | L70: =L69*(1+DSWRESR!$I$3) -> 248081911 | M70: 130945384.2 | N70: 438190051.5 | O70: -21994460.74 | P70: -5061743437 | Q70: 91921358.34 | R70: -297805038.8 | S70: 91921358.34 | T70: -297805038.8 | U70: 91921358.34 | V70: -297805038.8
A71: 2062 | B71: 47428835.62 | C71: 34576553.52 | D71: 11001275.01 | E71: =$B$3*'Population Estimates'!$E$4*$B$5^(A71-$A$24)*$B$4 -> 43418095.19 | F71: 0 | G71: =G70*(1+DSWRESR!$I$3) -> 295506701.8 | H71: 431931461.1 | I71: 0 | J71: 61120695.29 | K71: 130945384.2 | L71: =L70*(1+DSWRESR!$I$3) -> 258005187.5 | M71: 130945384.2 | N71: 450071267 | O71: -18139805.93 | P71: -5282352981 | Q71: 99545956.51 | R71: -210171283.8 | S71: 99545956.51 | T71: -210171283.8 | U71: 99545956.51 | V71: -210171283.8
A72: 2063 | B72: 48998451.02 | C72: 35720834 | D72: 11365352.48 | E72: =$B$3*'Population Estimates'!$E$4*$B$5^(A72-$A$24)*$B$4 -> 44854978.67 | F72: 0 | G72: =G71*(1+DSWRESR!$I$3) -> 307326969.8 | H72: 448266586 | I72: 0 | J72: 63143430.69 | K72: 130945384.2 | L72: =L71*(1+DSWRESR!$I$3) -> 268325395 | M72: 130945384.2 | N72: 462414209.9 | O72: -14147623.92 | P72: -5507794724 | Q72: 107432844.8 | R72: -111145290.4 | S72: 107432844.8 | T72: -111145290.4 | U72: 107432844.8 | V72: -111145290.4
A73: 2064 | B73: =B72*$B$5 -> 50620011.45 | C73: =C72*$B$5 -> 36902983.43 | D73: =D72*$B$5 -> 11741478.78 | E73: =$B$3*'Population Estimates'!$E$4*$B$5^(A73-$A$24)*$B$4 -> 46339414.55 | F73: 0 | G73: =G72*(1+DSWRESR!$I$3) -> 319620048.6 | H73: 465223936.8 | I73: 0 | J73: 65233106.72 | K73: 130945384.2 | L73: =L72*(1+DSWRESR!$I$3) -> 279058410.8 | M73: 130945384.2 | N73: 475236901.7 | O73: -10012964.92 | P73: -5738119478 | Q73: 115591102 | R73: 4.023313522e-07 | S73: 115591102 | T73: 5.811452866e-07 | U73: 115591102 | V73: 1.311302185e-06
F74: =SUM(F24:F73) -> 150000000 | K74: =SUM(K24:K73) -> 5237815370
R75: Estimated Factors to make Final-Year Debt (the blue cells) almost zero: | S75: 3.403629062 | T75: 0 | U75: 2.710523387

Sheet Water Demand
A1: Note: for this graph to look right, cell M6 of the "First Scenario" tab should be "A" and cell M6 of the "Second Scenario" tab should be "B". | K1: First Scenario | Q1: First Scenario | W1: Second Scenario | AC1: Second Scenario
K2: Increased Water Prices only | Q2: Increased Water Prices and Impact Fees | W2: Increased Water Prices only | AC2: Increased Water Prices and Impact Fees
B3: Year | C3: Current Supply | D3: Supply with LPP | E3: Base Per Capita Use (GPCD) | F3: Assumed Conservation from 2005 | G3: Per Capita Use with Conservation (GPCD) | H3: 2005 Projected Water Demand w/ cons. (ac-ft/yr) | I3: 2012 Projected Water Demand w/ cons. (ac-ft/yr) | J3: 2012 Projected Water Demand w/o cons. (ac-ft/yr) | K3: Demand w/ cons. (ac-ft/yr) | L3: GPCD w/ cons. | M3: Demand w/o cons. (ac-ft/yr) | N3: GPCD w/o cons. | O3: Demand (ac-ft/yr) | Q3: Demand w/ cons. (ac-ft/yr) | R3: GPCD w/ cons. | S3: Demand w/o cons. (ac-ft/yr) | T3: GPCD w/o cons. | U3: Demand (ac-ft/yr) | W3: Demand w/ cons. (ac-ft/yr) | X3: GPCD w/ cons. | Y3: Demand w/o cons. (ac-ft/yr) | Z3: GPCD w/o cons. | AA3: Demand (ac-ft/yr) | AC3: Demand w/ cons. (ac-ft/yr) | AD3: GPCD w/ cons. | AE3: Demand w/o cons. (ac-ft/yr) | AF3: GPCD w/o cons. | AG3: Demand (ac-ft/yr)
B4: 2009 | C4: =74560+7450 -> 82010 | D4: =C4 -> 82010 | E4: 294.3 | F4: 0 | G4: 294.3 | H4: =(G4*'Population Estimates'!E2*365)/325853 -> 55407.97452 | I4: =($G4*'Population Estimates'!E3*365)/325853 -> 45739.15473 | J4: =($E4*'Population Estimates'!E$3*365)/325853 -> 45739.15473 | K4: =$I4*'First Scenario'!$B$13 -> 11285.26872 | L4: =$G4*'First Scenario'!$B$13 -> 72.61294191 | M4: =$J4*'First Scenario'!$B$13 -> 11285.26872 | N4: =$E4*'First Scenario'!$B$13 -> 72.61294191 | O4: =IF(N4>G4,K4,M4) -> 11285.26872 | Q4: =$I4*'First Scenario'!$J$21 -> 18103.77452 | R4: =$G4*'First Scenario'!$J$21 -> 116.4853368 | S4: =$J4*'First Scenario'!$J$21 -> 18103.77452 | T4: =$E4*'First Scenario'!$J$21 -> 116.4853368 | U4: =IF(T4>M4,Q4,S4) -> 18103.77452 | W4: =$I4*'Second Scenario'!$B$13 -> 10386.69563 | X4: =$G4*'Second Scenario'!$B$13 -> 66.8312421 | Y4: =$J4*'Second Scenario'!$B$13 -> 10386.69563 | Z4: =$E4*'Second Scenario'!$B$13 -> 66.8312421 | AA4: =IF(Z4>S4,W4,Y4) -> 10386.69563 | AC4: =$I4*'Second Scenario'!$J$21 -> 16929.05053 | AD4: =$G4*'Second Scenario'!$J$21 -> 108.9267959 | AE4: =$J4*'Second Scenario'!$J$21 -> 16929.05053 | AF4: =$E4*'Second Scenario'!$J$21 -> 108.9267959 | AG4: =IF(AF4>Y4,AC4,AE4) -> 16929.05053
B5: 2010 | C5: =74560+7450 -> 82010 | D5: =C5 -> 82010 | E5: 294.3 | F5: 0.01 | G5: =$G$4*(100%-F5) -> 291.357 | H5: =(G5*'Population Estimates'!E2*365)/325853 -> 54853.89477 | I5: =($G5*'Population Estimates'!E3*365)/325853 -> 45281.76318 | J5: =($E5*'Population Estimates'!E3*365)/325853 -> 45739.15473 | K5: =$I5*'First Scenario'!$B$13 -> 11172.41604 | L5: =$G5*'First Scenario'!$B$13 -> 71.88681249 | M5: =$J5*'First Scenario'!$B$13 -> 11285.26872 | N5: =$E5*'First Scenario'!$B$13 -> 72.61294191 | O5: =IF(N5>G5,K5,M5) -> 11285.26872 | Q5: =$I5*'First Scenario'!$J$21 -> 17922.73678 | R5: =$G5*'First Scenario'!$J$21 -> 115.3204834 | S5: =$J5*'First Scenario'!$J$21 -> 18103.77452 | T5: =$E5*'First Scenario'!$J$21 -> 116.4853368 | U5: 18103.77452 | W5: =$I5*'Second Scenario'!$B$13 -> 10282.82867 | X5: =$G5*'Second Scenario'!$B$13 -> 66.16292968 | Y5: =$J5*'Second Scenario'!$B$13 -> 10386.69563 | Z5: =$E5*'Second Scenario'!$B$13 -> 66.8312421 | AA5: 10386.69563 | AC5: =$I5*'Second Scenario'!$J$21 -> 16759.76003 | AD5: =$G5*'Second Scenario'!$J$21 -> 107.8375279 | AE5: =$J5*'Second Scenario'!$J$21 -> 16929.05053 | AF5: =$E5*'Second Scenario'!$J$21 -> 108.9267959 | AG5: 16929.05053
B6: 2020 | C6: =$C$5+3830+7300+10080+27620 -> 130840 | D6: =C4+69000 -> 151010 | E6: 294.3 | F6: 0.05 | G6: 279.585 | H6: =(G6*'Population Estimates'!F2*365)/325853 -> 87645.98884 | I6: =($G6*'Population Estimates'!F3*365)/325853 -> 61620.64451 | J6: =($E6*'Population Estimates'!F3*365)/325853 -> 64863.83633 | K6: =$I6*'First Scenario'!$B$13 -> 15203.72504 | L6: =$G6*'First Scenario'!$B$13 -> 68.98229481 | M6: =$J6*'First Scenario'!$B$13 -> 16003.9211 | N6: =$E6*'First Scenario'!$B$13 -> 72.61294191 | O6: 16003.9211 | Q6: =$I6*'First Scenario'!$J$21 -> 24389.74356 | R6: =$G6*'First Scenario'!$J$21 -> 110.6610699 | S6: =$J6*'First Scenario'!$J$21 -> 25673.41427 | T6: =$E6*'First Scenario'!$J$21 -> 116.4853368 | U6: 25673.41427 | W6: =$I6*'Second Scenario'!$B$13 -> 13993.15057 | X6: =$G6*'Second Scenario'!$B$13 -> 63.48968 | Y6: =$J6*'Second Scenario'!$B$13 -> 14729.63218 | Z6: =$E6*'Second Scenario'!$B$13 -> 66.8312421 | AA6: 14729.63218 | AC6: =$I6*'Second Scenario'!$J$21 -> 22807.13343 | AD6: =$G6*'Second Scenario'!$J$21 -> 103.4804561 | AE6: =$J6*'Second Scenario'!$J$21 -> 24007.50887 | AF6: =$E6*'Second Scenario'!$J$21 -> 108.9267959 | AG6: 24007.50887
B7: 2030 | C7: =$C$5+3830+7300+10080+27620 -> 130840 | D7: =C5+69000 -> 151010 | E7: 294.3 | F7: 0.09 | G7: 267.813 | H7: =(G7*'Population Estimates'!G2*365)/325853 -> 124647.7018 | I7: =($G7*'Population Estimates'!G3*365)/325853 -> 84163.82256 | J7: =($E7*'Population Estimates'!G3*365)/325853 -> 92487.7171 | K7: =$I7*'First Scenario'!$B$13 -> 20765.82657 | L7: =$G7*'First Scenario'!$B$13 -> 66.07777714 | M7: =$J7*'First Scenario'!$B$13 -> 22819.58963 | N7: =$E7*'First Scenario'!$B$13 -> 72.61294191 | O7: 22819.58963 | Q7: =$I7*'First Scenario'!$J$21 -> 33312.44042 | R7: =$G7*'First Scenario'!$J$21 -> 106.0016565 | S7: =$J7*'First Scenario'!$J$21 -> 36607.07739 | T7: =$E7*'First Scenario'!$J$21 -> 116.4853368 | U7: 36607.07739 | W7: =$I7*'Second Scenario'!$B$13 -> 19112.37785 | X7: =$G7*'Second Scenario'!$B$13 -> 60.81643031 | Y7: =$J7*'Second Scenario'!$B$13 -> 21002.61302 | Z7: =$E7*'Second Scenario'!$B$13 -> 66.8312421 | AA7: 21002.61302 | AC7: =$I7*'Second Scenario'!$J$21 -> 31150.85125 | AD7: =$G7*'Second Scenario'!$J$21 -> 99.12338427 | AE7: =$J7*'Second Scenario'!$J$21 -> 34231.70467 | AF7: =$E7*'Second Scenario'!$J$21 -> 108.9267959 | AG7: 34231.70467
B8: 2040 | C8: =$C$5+3830+7300+10080+27620 -> 130840 | D8: =C6+69000 -> 199840 | E8: 294.3 | F8: 0.12 | G8: 258.984 | H8: =(G8*'Population Estimates'!H2*365)/325853 -> 162358.901 | I8: =($G8*'Population Estimates'!H3*365)/325853 -> 107841.737 | J8: =($E8*'Population Estimates'!H3*365)/325853 -> 122547.4284 | K8: =$I8*'First Scenario'!$B$13 -> 26607.90277 | L8: =$G8*'First Scenario'!$B$13 -> 63.89938888 | M8: =$J8*'First Scenario'!$B$13 -> 30236.25314 | N8: =$E8*'First Scenario'!$B$13 -> 72.61294191 | O8: 30236.25314 | Q8: =$I8*'First Scenario'!$J$21 -> 42684.27133 | R8: =$G8*'First Scenario'!$J$21 -> 102.5070964 | S8: =$J8*'First Scenario'!$J$21 -> 48504.85379 | T8: =$E8*'First Scenario'!$J$21 -> 116.4853368 | U8: 48504.85379 | W8: =$I8*'Second Scenario'!$B$13 -> 24489.28724 | X8: =$G8*'Second Scenario'!$B$13 -> 58.81149305 | Y8: =$J8*'Second Scenario'!$B$13 -> 27828.7355 | Z8: =$E8*'Second Scenario'!$B$13 -> 66.8312421 | AA8: 27828.7355 | AC8: =$I8*'Second Scenario'!$J$21 -> 39914.55955 | AD8: =$G8*'Second Scenario'!$J$21 -> 95.85558039 | AE8: =$J8*'Second Scenario'!$J$21 -> 45357.45403 | AF8: =$E8*'Second Scenario'!$J$21 -> 108.9267959 | AG8: 45357.45403
B9: 2050 | C9: =$C$5+3830+7300+10080+27620 -> 130840 | D9: =C7+69000 -> 199840 | E9: 294.3 | F9: 0.16 | G9: 247.212 | H9: =(G9*'Population Estimates'!I2*365)/325853 -> 196516.7546 | I9: =($G9*'Population Estimates'!I3*365)/325853 -> 130859.1454 | J9: =($E9*'Population Estimates'!I3*365)/325853 -> 155784.697 | K9: =$I9*'First Scenario'!$B$13 -> 32287.01164 | L9: =$G9*'First Scenario'!$B$13 -> 60.9948712 | M9: =$J9*'First Scenario'!$B$13 -> 38436.91862 | N9: =$E9*'First Scenario'!$B$13 -> 72.61294191 | O9: 38436.91862 | Q9: =$I9*'First Scenario'!$J$21 -> 51794.67084 | R9: =$G9*'First Scenario'!$J$21 -> 97.8476829 | S9: =$J9*'First Scenario'!$J$21 -> 61660.32243 | T9: =$E9*'First Scenario'!$J$21 -> 116.4853368 | U9: 61660.32243 | W9: =$I9*'Second Scenario'!$B$13 -> 29716.20534 | X9: =$G9*'Second Scenario'!$B$13 -> 56.13824337 | Y9: =$J9*'Second Scenario'!$B$13 -> 35376.43492 | Z9: =$E9*'Second Scenario'!$B$13 -> 66.8312421 | AA9: 35376.43492 | AC9: =$I9*'Second Scenario'!$J$21 -> 48433.8003 | AD9: =$G9*'Second Scenario'!$J$21 -> 91.49850856 | AE9: =$J9*'Second Scenario'!$J$21 -> 57659.28607 | AF9: =$E9*'Second Scenario'!$J$21 -> 108.9267959 | AG9: 57659.28607
B10: 2060 | C10: =$C$5+3830+7300+10080+27620 -> 130840 | D10: =C8+69000 -> 199840 | E10: 294.3 | F10: 0.18 | G10: 241.326 | H10: =(G10*'Population Estimates'!J2*365)/325853 -> 232575.8153 | I10: =($G10*'Population Estimates'!J3*365)/325853 -> 157252.4653 | J10: =($E10*'Population Estimates'!J3*365)/325853 -> 191771.2992 | K10: =$I10*'First Scenario'!$B$13 -> 38799.06262 | L10: =$G10*'First Scenario'!$B$13 -> 59.54261236 | M10: =$J10*'First Scenario'!$B$13 -> 47315.93003 | N10: =$E10*'First Scenario'!$B$13 -> 72.61294191 | O10: 47315.93003 | Q10: =$I10*'First Scenario'!$J$21 -> 62241.27212 | R10: =$G10*'First Scenario'!$J$21 -> 95.51797616 | S10: =$J10*'First Scenario'!$J$21 -> 75903.99039 | T10: =$E10*'First Scenario'!$J$21 -> 116.4853368 | U10: 75903.99039 | W10: =$I10*'Second Scenario'!$B$13 -> 35709.74374 | X10: =$G10*'Second Scenario'!$B$13 -> 54.80161852 | Y10: =$J10*'Second Scenario'!$B$13 -> 43548.46797 | Z10: =$E10*'Second Scenario'!$B$13 -> 66.8312421 | AA10: 43548.46797 | AC10: =$I10*'Second Scenario'!$J$21 -> 58202.53889 | AD10: =$G10*'Second Scenario'!$J$21 -> 89.31997264 | AE10: =$J10*'Second Scenario'!$J$21 -> 70978.70597 | AF10: =$E10*'Second Scenario'!$J$21 -> 108.9267959 | AG10: 70978.70597
H11: 2060 demand as a fraction of 2010 supply -> | I11: =I10/$C$4 -> 1.917479153 | O11: =O10/$C$4 -> 0.5769531768 | U11: =U10/$C$4 -> 0.9255455479 | AA11: =AA10/$C$4 -> 0.5310141199 | AG11: =AG10/$C$4 -> 0.8654884278
H12: 2060 demand as a fraction of 2010 demand -> | I12: =I10/$I$4 -> 3.438027359 | O12: =O10/$I$4 -> 1.034473206 | U12: =U10/$I$4 -> 1.659497007 | AA12: =AA10/$I$4 -> 0.9521047827 | AG12: =AG10/$I$4 -> 1.551814991
C13: Red = some water from outside WCWCD's non-LPP sources is actually used (total demand > 130,840 acre-feet)
C14: Blue = no water from outside of WCWCD's non-LPP sources will be needed because water's so expensive that > 130,840 acre-feet are not demanded
C15: Blue Italic = no water from outside of WCWCD's non-LPP sources will be needed because water's so expensive that > 82,010 acre-feet (2010's supply) are not demanded
C16: Blue Italic Underline = no water from outside of WCWCD's non-LPP sources will be needed because water's so expensive that > 45,739 acre-feet (2010's demand) are not demanded
C17: Source: 2011 LPP Water Needs Assessment
W20: =#REF!/C6 -> 
W25: 1992 Water Use - Wash. Cty.
W26: Culinary | X26: 18570
W27: Secondary | X27: 14710
W28: Total M&I | X28: =SUM(X26:X27) -> 33280
W30: Ag Water | X30: 87800
W31: Total | X31: =X28+X30 -> 121080

Sheet Water vs. Impact Fee Revenues
B1: Water Revenues | C1: Impact Fee Revenues | E1: ='First Scenario'!B8 -> 17.2881137 | F1: If Water Revenues rise by a factor > this, Q_2060 < Q_2010.
A2: 0 | B2: =1+(1-A2)*'First Scenario'!B10 -> 4.052996508 | C2: =1+(A2)*'First Scenario'!B15 -> 1
A3: 1 | B3: =1+(1-A3)*'First Scenario'!B10 -> 1 | C3: =1+(A3)*'First Scenario'!B15 -> 3.431292683
